Cogmind - Beta 11 @@@ ROGUE MODE // 2022.04.18 @ 06:34:31 Player: Benkyo Result: Escaped! Performance ------------- Evolutions (9) 4500 Regions Visited (31) 6200 Robots Destroyed (442) 2210 Value Destroyed (21305) 21305 Prototype IDs (123) 2460 Alien Tech Used (2) 400 Bonus (17573) 17573 TOTAL SCORE: 54648 Bonus ------- High Alert Combat Kills 3156 Follower Combat Kills 3421 Network Hubs Disabled 400 Aligned with FarCom 300 Met Data Miner 300 Destroyed Z-Imprinter 1000 Triggered Deep Caves Wall 500 Exposed GOLEM Chamber 500 Met Warlord at Base 500 MAIN.C Attacked Warlord 500 A7 Reached Mainframe 300 Met R17 at Cetus 500 Met Warlord at Research 2000 Met Sigix 2000 Win 3000 Friendly Fire -804 Cogmind --------- Core Integrity 1415/1600 Matter 300/300 Energy 2684/2700 System Corruption 4% Temperature Cool (4) Movement Walking (185) Ox1 Location To Epsilon Eridani Parts ------- > --- POWER (4) -------- Assembled Flux Generator Vortex Chain Reactor > --- PROPULSION (4) --- Assembled Alloy Leg Assembled Alloy Leg Centrium Leg Centrium Leg > --- UTILITY (14) ----- Assembled Nanovents Assembled Nanovents Huge Storage Unit Assembled Biocell Array Assembled Biocell Array Spectral Analyzer Advanced Signal Interpreter Assembled Combat Suite SHELL Armor Graphene Brace GOLEM Unit > --- WEAPON (3) ------- Gamma Rifle High-powered Disruptor Cannon > --- INVENTORY (25) --- Enhanced Armored Heavy Treads Advanced Cryofiber Web Experimental Energy Well (600) Zionite Biocell (600) Zionite Biocell (600) Advanced Gravity Neutralizer Advanced Sensor Array Centrium Medium Armor Plating Antimissile System Advanced Component Analysis Suite Transdimensional Reconstructor High-powered Transdimensional Reconstructor Subatomic Replicator Vortex Rail (19) Vortex Rail (7) Enhanced Nova Cannon Improved Potential Cannon Fusion Bomb Launcher Core Stripper CR-A16's Behemoth Slayer Peak State ------------ > --- POWER ------------ Assembled Flux Generator Vortex Chain Reactor > --- PROPULSION ------- Assembled Alloy Leg Assembled Alloy Leg Centrium Leg Centrium Leg > --- UTILITY ---------- Assembled Nanovents Huge Storage Unit Assembled Biocell Array Assembled Biocell Array Spectral Analyzer Advanced Sensor Array Advanced Signal Interpreter Assembled Combat Suite Assembled Alloy Armor SHELL Armor GOLEM Unit > --- WEAPON ----------- High-powered Disruptor Cannon Assembled Focal Cannon > --- INVENTORY -------- Enhanced Armored Heavy Treads Advanced Cryofiber Web Experimental Energy Well Zionite Biocell Zionite Biocell Advanced Gravity Neutralizer Centrium Medium Armor Plating Graphene Brace Antimissile System Advanced Component Analysis Suite Dimensional Node Initializer Transdimensional Reconstructor High-powered Transdimensional Reconstructor Subatomic Replicator Gamma Rifle Vortex Rail Vortex Rail Enhanced Nova Cannon Improved Potential Cannon Fusion Bomb Launcher Core Stripper CR-A16's Behemoth Slayer [Rating: 243] Favorites ----------- Power Assembled Flux Generator Engine Reinforced Deuterium Engine Power Core Light Nuclear Core Reactor Assembled Flux Generator Propulsion Assembled Alloy Leg Treads Light Treads Leg Assembled Alloy Leg Wheel Wheel Hover Unit Zionite Glidesys I Utility Huge Storage Unit Device GOLEM Unit Storage Huge Storage Unit Processor Improved Signal Interpreter Hackware Hacking Suite Protection Assembled Alloy Armor Weapon Assembled Focal Cannon Energy Gun Plasma Rifle Energy Cannon Assembled Focal Cannon Ballistic Gun Improved Heavy Machine Gun Ballistic Cannon Magnetic Acceleration Cannon Launcher Missile Launcher Impact Weapon Shock Maul Slashing Weapon Mining Claw Piercing Weapon CR-A16's Behemoth Slayer Build | -11 -10 -10 -10 -9 -8 -7 -7 -7 -7 -6 -6 -6 -6 -6 -6 -5 -5 -5 -5 -5 -5 -4 -4 -4 -4 -3 -3 -3 -2 -2 -1 ------- Run | Scr Mat Min Exi Min Mat Fac Low Low Dat Pro Fac Low Low Zio Dee Pro Fac Ext Cet Arc Hub Fac Upp Upp War Pro Res Tes Res Qua Acc Slots Evolved 18 | . . . . . 4 2 . . . . 2 . . . . . 2 . . . . 2 . . . . 2 . 2 . 2 Power 3 | . . . . . . . . . . . 1 . . . . . . . . . . . . . . . . . . . 2 Propulsion 2 | . . . . . . . . . . . . . . . . . . . . . . 2 . . . . . . . . . Utility 12 | . . . . . 4 2 . . . . . . . . . . 2 . . . . . . . . . 2 . 2 . . Weapon 1 | . . . . . . . . . . . 1 . . . . . . . . . . . . . . . . . . . . Parts Attached 420 | 8 5 13 3 2 48 43 3 4 2 11 26 9 10 6 42 . . 2 9 3 11 11 6 5 14 17 23 23 9 21 31 Power 24 | 1 . 1 1 . 6 3 . . . 1 5 . . . 5 . . . . . . . . . . . . . . . 1 Engine 15 | 1 . . 1 . 5 2 . . . 1 3 . . . 2 . . . . . . . . . . . . . . . . Core 6 | . . 1 . . 1 1 . . . . 2 . . . 1 . . . . . . . . . . . . . . . . Reactor 3 | . . . . . . . . . . . . . . . 2 . . . . . . . . . . . . . . . 1 Propulsion 46 | 2 1 4 . . 9 5 1 . . . 2 . . . 4 . . . . . . 3 . 1 3 . 2 2 . 3 4 Treads 1 | . . . . . 1 . . . . . . . . . . . . . . . . . . . . . . . . . . Leg 17 | . . . . . . . . . . . . . . . . . . . . . . 3 . 1 2 . 2 2 . 3 4 Wheel 26 | 2 1 4 . . 8 5 1 . . . 2 . . . 3 . . . . . . . . . . . . . . . . Hover 2 | . . . . . . . . . . . . . . . 1 . . . . . . . . . 1 . . . . . . Flight . | . . . . . . . . . . . . . . . . . . . . . . . . . . . . . . . . Utility 256 | 3 3 3 . 2 21 17 1 4 . 7 14 9 8 2 19 . . 1 5 3 7 7 6 4 11 16 19 20 9 18 17 Device 156 | 2 . 2 . 2 10 8 1 4 . 4 6 9 4 1 10 . . 1 1 1 4 5 3 2 6 8 10 10 8 17 17 Storage 11 | 1 2 . . . 2 . . . . . . . . . . . . . 1 . . . . . . 2 . 3 . . . Processor 14 | . . . . . 3 3 . . . . 3 . 1 . . . . . . . . . 1 . 1 1 1 . . . . Hackware 4 | . . . . . 2 . . . . . . . . . . . . . . . . . . . . . 1 1 . . . Protection 71 | . 1 1 . . 4 6 . . . 3 5 . 3 1 9 . . . 3 2 3 2 2 2 4 5 7 6 1 1 . Artifact . | . . . . . . . . . . . . . . . . . . . . . . . . . . . . . . . . Weapon 94 | 2 1 5 2 . 12 18 1 . 2 3 5 . 2 4 14 . . 1 4 . 4 1 . . . 1 2 1 . . 9 Energy Gun 28 | . . 1 1 . 4 3 1 . 1 1 2 . . 1 7 . . . 1 . 1 . . . . . . . . . 4 Energy Cannon 6 | . . . . . 2 . . . . . 1 . 1 . . . . . . . . . . . . . . . . . 2 Ballistic Gun 25 | 2 1 2 . . 3 6 . . 1 . . . . 1 2 . . 1 3 . 2 1 . . . . . . . . . Ballistic Cannon 13 | . . . . . 1 7 . . . . 1 . 1 1 2 . . . . . . . . . . . . . . . . Launcher 11 | . . 1 1 . 2 . . . . 1 . . . . 3 . . . . . 1 . . . . . 2 . . . . Special Weapon . | . . . . . . . . . . . . . . . . . . . . . . . . . . . . . . . . Impact Weapon 6 | . . . . . . 2 . . . 1 1 . . 1 . . . . . . . . . . . . . 1 . . . Slashing Weapon 1 | . . 1 . . . . . . . . . . . . . . . . . . . . . . . . . . . . . Piercing Weapon 4 | . . . . . . . . . . . . . . . . . . . . . . . . . . 1 . . . . 3 Special Melee Weapon . | . . . . . . . . . . . . . . . . . . . . . . . . . . . . . . . . Unidentified Prototypes 28 | . . . . . 2 2 . . . . . . . . 6 . . . 5 . 3 . . . 5 . 1 1 . 2 1 Parts Lost 59 | . 1 2 . . 13 11 . . . . 4 . . . 11 1 . 2 1 . 4 1 . 1 . . 1 1 . 2 3 Power 8 | . . . . . 3 2 . . . . . . . . 2 . . . . . . 1 . . . . . . . . . Propulsion 8 | . 1 . . . 5 1 . . . . . . . . . . . . . . 1 . . . . . . . . . . Utility 32 | . . 1 . . 4 7 . . . . 3 . . . 8 . . 2 1 . 1 . . . . . 1 1 . 1 2 Weapon 11 | . . 1 . . 1 1 . . . . 1 . . . 1 1 . . . . 2 . . 1 . . . . . 1 1 Highest Loss Streak 7 | . 1 2 . . 6 7 . . . . 2 . . . 5 1 . 1 1 . 4 1 . 1 . . 1 1 . 1 1 To Critical Strikes 2 | . . . . . . . . . . . . . . . . . . . . . 1 . . . . . 1 . . . . Average Slot Usage (%) 82 | . 99 99 74 100 95 90 60 61 48 62 96 61 71 91 76 79 82 84 87 87 87 83 87 89 88 87 89 93 82 81 79 Engine 3 | . 14 10 14 14 8 4 . . . 1 9 6 6 6 4 . . . . . . . . . . . . . . . . Core 2 | . . 3 . . . 2 7 7 7 5 2 6 6 6 4 . . . . . . . . . . . . . . . . Reactor 2 | . . . . . . . . . . . . . . . 1 5 5 5 5 5 5 5 5 5 5 5 4 4 4 4 8 Leg 6 | . . . . . . . . . . . . . . . . . . 6 11 11 10 17 21 21 20 20 19 19 17 16 15 Wheel 7 | . 28 28 28 28 16 14 15 15 15 15 9 6 6 6 5 6 5 1 . . . . . . . . . . . . . Device 15 | . 8 13 14 14 23 26 14 15 15 15 18 6 12 23 10 13 23 23 13 11 9 9 14 15 14 14 17 22 18 17 16 Storage 9 | . 14 14 14 14 9 7 7 7 7 7 6 6 6 6 7 13 11 11 11 11 11 10 10 10 10 10 9 9 11 13 12 Processor 7 | . . . . . 4 5 . . . . 15 6 7 13 13 13 11 11 11 11 11 10 9 10 10 10 9 9 8 8 8 Protection 8 | . 6 . . . 7 10 . . . 1 11 . 4 8 15 6 5 4 14 16 18 14 9 9 10 9 12 12 7 7 7 Energy Gun 1 | . . 1 2 14 7 2 6 7 . 1 6 . . . 1 . . . . . . . . . . . . . . . . Energy Cannon 6 | . . . . . 1 4 . . . . 1 6 5 3 2 15 17 15 11 10 11 9 10 12 15 14 13 9 13 13 11 Ballistic Gun 4 | . 27 22 . . 5 1 7 7 1 7 6 6 6 6 1 3 . 1 4 5 4 4 5 2 . . . . . . . Ballistic Cannon 1 | . . . . . 3 4 . . . . 4 6 5 5 3 . . . . . . . . . . . . . . . . Naked Turns . | . . . . . . . . . . . . . . . . . . . . . . . . . . . . . . . . Heaviest Build 293 | 15 50 52 56 56 123 185 175 175 175 180 130 202 202 174 178 172 174 175 188 179 188 188 179 187 195 293 191 194 211 210 242 Greatest Support 140 | 26 26 20 20 20 32 26 26 26 26 26 28 28 28 28 60 28 28 60 60 60 60 110 130 130 135 135 110 140 140 120 120 Greatest Overweight (x) 57 | . 2 2 2 2 10 8 7 6 6 6 4 7 7 6 11 6 6 57 3 2 5 5 1 1 1 2 2 1 2 2 2 Average Overweight (x) 3 | . 1 2 2 2 3 4 6 6 6 5 4 6 5 4 5 5 6 4 2 2 2 1 1 1 1 1 1 . 1 1 1 Largest Inventory Capacity 35 | 8 20 20 20 20 25 25 25 25 25 25 25 25 25 25 25 25 25 25 25 25 25 25 25 25 25 35 25 25 25 25 25 Average Capacity 24 | 7 19 20 20 20 24 25 25 25 25 25 25 25 25 25 25 25 25 25 25 25 25 25 25 25 25 26 25 24 25 25 25 Most Carried 27 | 8 20 20 20 19 25 25 25 25 24 25 25 25 25 25 25 25 25 25 25 25 25 25 25 25 25 27 25 25 25 25 25 Average Carried 23 | 6 17 19 19 18 23 24 24 24 24 24 24 24 24 24 22 24 24 24 24 25 24 24 24 24 24 25 24 24 24 24 24 Final Capacity 25 | 8 20 20 20 20 25 25 25 25 25 25 25 25 25 25 25 25 25 25 25 25 25 25 25 25 25 25 25 25 25 25 25 Final Carried 25 | 8 20 20 18 18 25 24 25 24 24 25 25 25 25 25 25 25 25 25 25 25 24 25 25 25 25 25 25 25 25 25 23 Class Distribution -------------------- 25% | Mutant 21% | Scavenger-Golem 14% | Golem 9% | Scavenger-Tank 8% | Scavenger-Mutant 5% | Scavenger-Skirmisher 4% | Generator-Golem 3% | Gunner Dominant Class ---------------- Mutant | -10/Materials Mutant | -10/Mines Scavenger-Mutant | -10/Exiles Scavenger-Mutant | -9/Mines Scavenger-Mutant | -8/Materials Mutant | -7/Factory Mutant | -7/Lower Caves Mutant | -7/Lower Caves Mutant | -7/Data Miner Mutant | -6/Proximity Caves Scavenger-Skirmisher | -6/Factory Mutant | -6/Lower Caves Gunner | -6/Lower Caves Scavenger-Skirmisher | -6/Zion Scavenger-Tank | -6/Deep Caves Golem | -5/Proximity Caves Golem | -5/Factory Golem | -5/Extension Scavenger-Golem | -5/Cetus Scavenger-Golem | -5/Archives Scavenger-Golem | -5/Hub_04(d) Scavenger-Golem | -4/Factory Scavenger-Golem | -4/Upper Caves Scavenger-Golem | -4/Upper Caves Scavenger-Golem | -4/Warlord Scavenger-Golem | -3/Proximity Caves Scavenger-Golem | -3/Research Scavenger-Assassin | -3/Testing Golem | -2/Research Golem | -2/Quarantine Generator-Golem | -1/Access Resources | -11 -10 -10 -10 -9 -8 -7 -7 -7 -7 -6 -6 -6 -6 -6 -6 -5 -5 -5 -5 -5 -5 -4 -4 -4 -4 -3 -3 -3 -2 -2 -1 ----------- Run | Scr Mat Min Exi Min Mat Fac Low Low Dat Pro Fac Low Low Zio Dee Pro Fac Ext Cet Arc Hub Fac Upp Upp War Pro Res Tes Res Qua Acc Matter Collected 7737 | 358 387 372 . 118 692 1180 182 79 . 137 411 136 334 60 572 85 . 50 239 58 192 346 229 88 . 260 205 301 80 261 325 Remotely 546 | . . . . . 255 116 . . . . 175 . . . . . . . . . . . . . . . . . . . . Salvage Created 23638 | 197 683 147 . 94 1603 1842 49 . . 29 681 41 6 . 2178 283 243 1465 994 393 1295 1424 429 644 . 515 479 1092 545 1069 5218 Parts 1125 | 16 44 15 . 6 90 79 3 . . . 26 . 5 . 40 13 26 57 52 14 72 69 29 22 . 24 30 60 23 70 240 Haulers Intercepted 16 | . 2 . . . 4 . . . . . . . . . . . . . . . 3 . . . . . . 1 . . 6 Recyclers Shooed 6 | . 1 . . . 3 1 . . . . 1 . . . . . . . . . . . . . . . . . . . . Parts Field Recycled . | . . . . . . . . . . . . . . . . . . . . . . . . . . . . . . . . Retrieved Matter . | . . . . . . . . . . . . . . . . . . . . . . . . . . . . . . . . Parts Self-Destructed 216 | . . . . . . . 18 10 . 14 . 18 10 4 . 13 . . . . . . 29 23 59 18 . . . . . Prevented 26 | . . . . . . . 1 2 . . . 2 3 . . . . . . . . . 6 1 6 5 . . . . . Kills | -11 -10 -10 -10 -9 -8 -7 -7 -7 -7 -6 -6 -6 -6 -6 -6 -5 -5 -5 -5 -5 -5 -4 -4 -4 -4 -3 -3 -3 -2 -2 -1 ------- Run | Scr Mat Min Exi Min Mat Fac Low Low Dat Pro Fac Low Low Zio Dee Pro Fac Ext Cet Arc Hub Fac Upp Upp War Pro Res Tes Res Qua Acc Combat Hostiles Destroyed 359 | . 13 12 . 1 24 34 1 . . . 10 . 2 . 66 11 . 15 16 4 10 23 12 8 . 4 6 13 5 14 55 Guns 81 | . 13 3 . 1 15 6 1 . . . 9 . 1 . 10 2 . 2 3 2 2 2 3 . . . . . . . 6 Cannons 221 | . . . . . 6 27 . . . . 1 . 1 . 19 9 . 13 13 2 7 21 9 8 . 3 5 13 5 14 45 AOE 45 | . . 9 . . 3 . . . . . . . . . 32 . . . . . 1 . . . . . . . . . . Classes Destroyed 28 | 2 5 3 . . 2 2 1 . . . . 1 1 . 3 . . . . . . . . . . 2 . 1 1 . 4 Worker 25 | . . 2 . . 3 6 . . . . . . . . . . 6 . . . 8 . . . . . . . . . . Builder 24 | . . 1 . 2 3 1 . . . . . . . . . . 6 1 . . 7 . . . . . . . . . 3 Tunneler 7 | 5 . . . . 1 . . . . . . . . . . . . . . . 1 . . . . . . . . . . Hauler 16 | . 2 . . . 4 . . . . . . . . . . . . . . . 3 . . . . . . 1 . . 6 Recycler 17 | 1 . . . 1 5 3 . . . . 1 . . . . . 1 3 . . 1 . . . . . . . 1 . . Carrier 1 | . . . . . . . . . . . . . . . . . . . . . . . . . . . . . . . 1 Minesweeper 5 | . . . . . . . . . . . . 1 . . . . . . . . . . 1 . . 3 . . . . . Mechanic 1 | . . . . . . . . . . . . . . . . . . . . . . . . . . . . . . . 1 Operator 11 | . 2 . . . 1 1 . . . . 1 . . . . . 1 1 . . 2 1 . . . . . . . . 1 Watcher 30 | . 3 . . . 4 3 . . . . 2 . . . . . 1 2 2 . . 2 . . . . 1 3 . 1 6 Swarmer 57 | . 3 3 . . 9 3 . . . . . . . . . 10 . . 4 . 3 5 9 . . . . 3 . . 5 Grunt 116 | . 10 2 . 1 8 21 . . . . 6 . . . . . . 13 4 . 5 6 . 7 . 3 . 6 3 4 17 Brawler 6 | . . . . . . 1 . . . . . . . . . . . . 1 . . 1 . . . . . . . . 3 Duelist 3 | . . . . . . . 1 . . . . . . . . . . . . . . 1 . . . . . . . . 1 Researcher 3 | . . . . . . . . . . . . . . . . . . . . . . . . . . . . 3 . . . Sentry 22 | . . . . . 6 4 . . . . 2 . . . . . . . . 4 1 1 . . . . 1 . . . 3 Specialist 2 | . . . . . . . . . . . . . . . . . . . . . . . . . . . . . . . 2 Hunter 20 | . . . . . 1 1 . . . . . . . . . 1 . 2 1 . 1 2 1 . . . 3 . . . 7 Programmer 39 | . . . . . . 4 . . . . 2 . . . . . . . . . . 7 2 1 . . 2 4 . 3 14 Heavy 1 | . . . . . . . . . . . . . . . . . . . . . . . . . . . . . . . 1 Behemoth 3 | . . . . . . . . . . . . . . . . . . . . . . . . . . 1 . . . . 2 Cetus Guard 6 | . . . . . . . . . . . . . . . . . . . 6 . . . . . . . . . . . . Quarantine Guard 7 | . . . . . . . . . . . . . . . . . . . . . . . . . . . . . . 7 . Striker 2 | . . . . . . . . . . . . . . . . . . . . . . . . . . . . . 2 . . Z-Technician 5 | . . . . . . . . . . . . . . . 5 . . . . . . . . . . . . . . . . Z-Light 11 | . . . . . . . . . . . . . . . 11 . . . . . . . . . . . . . . . . Decomposer 4 | . . . . . . . . . . 1 . . . . . . . . . . . . . . . 3 . . . . . Packrat 1 | . . . . . . . . . . . . . . . . . . . . . . . . 1 . . . . . . . Samaritan 1 | . . . . . . . . . . . . . . . . . . . . . . . . . . 1 . . . . . Master Thief 2 | . . . . . . . . . . . . . 2 . . . . . . . . . . . . . . . . . . Assembler 2 | . . . . . . . . . . . . . . . 2 . . . . . . . . . . . . . . . . Assembled 46 | . . 7 . . . . . . . . . . . . 39 . . . . . . . . . . . . . . . . Golem 15 | . . . . . . . . . . . . . . . 15 . . . . . . . . . . . . . . . . Savage 1 | . . . . . . . . . . . . . . . . . . 1 . . . . . . . . . . . . . Best Kill Streak 34 | 2 4 3 . 4 9 4 1 . . . 3 1 1 . 34 5 13 8 7 2 10 6 4 3 . 3 2 4 3 4 11 Combat Bots Only 32 | . 3 3 . 1 5 4 1 . . . 3 . 1 . 32 5 . 8 7 2 3 6 4 3 . 2 2 4 3 4 7 Max Kills in Single Turn 26 | 1 1 2 . 1 3 3 1 . . 1 2 1 1 . 26 1 5 1 2 1 9 2 1 1 . 1 1 1 1 1 2 Gunslinging 1 | . . . . . 1 . . . . . 1 . . . . . . . . . . . . . . . . . . . . Exploded 26 | . . 2 . . 1 . . . . . . . . . 26 . . . . . 1 . . . . . . . . . . Melee . | . . . . . . . . . . . . . . . . . . . . . . . . . . . . . . . . Uniques/NPCs Destroyed 1 | . . . . . . . . . . . . . . . 1 . . . . . . . . . . . . . . . . Z-Imprinter (-6/Deep Caves) Combat | -11 -10 -10 -10 -9 -8 -7 -7 -7 -7 -6 -6 -6 -6 -6 -6 -5 -5 -5 -5 -5 -5 -4 -4 -4 -4 -3 -3 -3 -2 -2 -1 -------- Run | Scr Mat Min Exi Min Mat Fac Low Low Dat Pro Fac Low Low Zio Dee Pro Fac Ext Cet Arc Hub Fac Upp Upp War Pro Res Tes Res Qua Acc Damage Taken 24295 | . 330 546 . 128 1752 2826 47 . . 3 678 43 371 . 2244 540 66 737 986 48 2280 929 521 754 . 529 1120 848 165 2225 3579 Core 2298 | . 102 110 . 16 422 356 . . . . 43 . . . 160 52 . 115 85 . 161 72 35 49 . 30 100 51 . 154 185 Absorbed by Shields 429 | . . . . . . . . . . . . . . . 363 . . 37 29 . . . . . . . . . . . . Redirected to Shielding 332 | . . 8 . . . . . . . . . . . . 324 . . . . . . . . . . . . . . . . Regen/Repaired (Parts) 4410 | . 67 . . . . . . . . . 172 . . . . . . . 137 159 71 324 133 150 . 79 164 549 30 883 1492 Core Remaining (%) 65 | 100 . . . 8 23 . . . . 49 . . . . . 70 . . . . 63 . . . . 83 . 88 . 81 88 Volleys Fired 1225 | 13 62 23 5 7 136 144 3 1 . 2 32 12 23 . 79 21 17 54 50 11 54 70 26 25 . 20 23 51 21 74 166 Largest 3 | 2 2 2 1 1 2 2 2 1 . 2 3 1 3 . 3 3 3 3 3 3 3 3 3 3 . 3 3 2 3 3 3 Hottest 188 | 40 40 105 75 75 112 113 90 75 . 90 150 90 168 . 188 75 75 83 85 85 85 85 85 85 . 75 75 50 75 75 185 Shots Fired 2787 | 26 124 35 5 7 245 268 7 2 . 4 83 12 66 . 273 58 25 139 129 29 110 176 76 64 . 47 63 89 49 146 430 Gun 946 | 26 124 23 5 4 184 95 7 2 . 2 68 . 23 . 168 15 . 10 36 7 23 47 24 7 . . . . . . 46 Cannon 1811 | . . . . . 53 173 . . . . 15 12 43 . 100 43 25 129 93 22 87 129 52 57 . 47 63 89 49 146 384 Launcher 30 | . . 12 . 3 8 . . . . 2 . . . . 5 . . . . . . . . . . . . . . . . Special . | . . . . . . . . . . . . . . . . . . . . . . . . . . . . . . . . Kinetic 828 | 26 124 22 . . 120 142 3 1 . 1 42 . 45 . 133 15 . 10 36 7 23 47 24 7 . . . . . . . Thermal 1721 | . . 1 5 4 117 122 2 1 . 1 30 12 21 . 10 43 25 129 93 22 87 129 52 57 . 47 63 89 49 146 364 Explosive 29 | . . 12 . 3 8 . . . . 2 . . . . 4 . . . . . . . . . . . . . . . . Electromagnetic 110 | . . . . . . 4 2 . . . 11 . . . 58 . . . . . . . . . . . . . . . 35 Entropic 31 | . . . . . . . . . . . . . . . . . . . . . . . . . . . . . . . 31 Phasic 68 | . . . . . . . . . . . . . . . 68 . . . . . . . . . . . . . . . . Robot Hit Streak 81 | 10 11 5 . 1 12 23 3 . . 1 12 8 12 . 81 7 5 29 19 17 12 19 5 13 . 12 28 8 12 22 23 Robot Miss Streak 8 | 3 3 4 . 3 3 6 1 . . . 3 6 8 . 5 4 2 5 4 1 6 3 4 4 . 2 2 2 2 1 4 Penetration Max 1 | . . . . . . . . . . . . . . . . . . . . . 1 1 . . . . . . . . 1 Secondary Targets 3 | . . . . . 1 . 1 . . . 1 . . . . . . . . . . . . . . . . . . . . Max Gunslinging Chain 1 | . . . . . 1 . 1 . . . 1 . . . . . . . . . . . . . . . . . . . . Autonomous 92 | . . . . . . . . . . . . . . . 92 . . . . . . . . . . . . . . . . Shots Hit Robots 1607 | 16 76 14 . 3 156 168 4 . . 1 55 5 36 . 196 29 5 68 81 22 40 84 29 38 . 28 42 53 25 86 247 Core Hits 863 | 6 38 22 . 5 80 69 4 1 . 3 29 1 8 . 182 11 11 31 32 9 39 39 14 16 . 12 13 24 14 37 113 Critical Kills 9 | . . . . . . . . . . . . 1 . . . . . . 1 2 2 1 1 . . . . 1 . . . Critical Parts Destroyed 17 | . . . . . . 1 . . . . . . . . . . . . 2 . 3 4 2 1 . . . 3 . . 1 Critical Strikes 57 | . . . . . 6 12 . . . . 3 1 1 . 8 . . . 3 2 5 6 3 1 . . . 4 . . 2 Burn 13 | . . . . . 5 6 . . . . 2 . . . . . . . . . . . . . . . . . . . . Meltdown 1 | . . . . . . . . . . . . 1 . . . . . . . . . . . . . . . . . . . Destroy 21 | . . . . . . 1 . . . . . . . . . . . . 3 2 5 6 3 1 . . . . . . . Blast 13 | . . . . . 1 5 . . . . 1 . 1 . 5 . . . . . . . . . . . . . . . . Corrupt 2 | . . . . . . . . . . . . . . . 1 . . . . . . . . . . . . . . . 1 Smash 4 | . . . . . . . . . . . . . . . . . . . . . . . . . . . . 4 . . . Detonate 1 | . . . . . . . . . . . . . . . . . . . . . . . . . . . . . . . 1 Intensify 2 | . . . . . . . . . . . . . . . 2 . . . . . . . . . . . . . . . . Melee Attacks 43 | . . 1 . . . 1 . . . 1 1 . . 4 . . . . . . . . . . . 6 . 24 . . 5 Impact 31 | . . . . . . 1 . . . 1 1 . . 4 . . . . . . . . . . . . . 24 . . . Slashing 1 | . . 1 . . . . . . . . . . . . . . . . . . . . . . . . . . . . . Piercing 11 | . . . . . . . . . . . . . . . . . . . . . . . . . . 6 . . . . 5 Sneak Attacks 5 | . . . . . . . . . . . . . . . . . . . . . . . . . . . . 5 . . . Combat Hostiles . | . . . . . . . . . . . . . . . . . . . . . . . . . . . . . . . . Follow-up Attacks . | . . . . . . . . . . . . . . . . . . . . . . . . . . . . . . . . Damage Inflicted 67877 | 193 941 850 . 246 3273 4643 132 20 . 41 1673 161 934 . 10801 1134 1547 3454 3719 912 3707 3947 1192 1783 . 1110 1921 2893 1090 4035 11525 Guns 12412 | 193 941 177 . 65 1620 1272 132 20 . 21 1140 . 281 . 3120 93 . 133 614 130 293 632 200 120 . . . . . . 1215 Cannons 46618 | . . . . . 769 3025 . . . . 213 161 653 . 5172 1041 303 3321 3105 782 1703 3315 992 1663 . 981 1921 2118 1090 4035 10255 Explosions 7934 | . . 673 . 181 884 346 . . . 20 311 . . . 2509 . 1244 . . . 1711 . . . . . . . . . 55 Melee 904 | . . . . . . . . . . . . . . . . . . . . . . . . . . 129 . 775 . . . Ramming 9 | . . . . . . . . . . . 9 . . . . . . . . . . . . . . . . . . . . Kinetic 13544 | 193 941 177 . . 839 2226 66 20 . . 679 . 536 . 5652 93 . 133 614 130 293 632 200 120 . . . . . . . Thermal 41872 | . . . . 65 1550 2412 44 . . 21 748 161 398 . 152 1041 303 3321 3105 782 1703 3315 992 1663 . 981 1921 2118 1090 4035 9951 Explosive 5140 | . . 673 . 181 884 . . . . 20 . . . . 2138 . 1244 . . . . . . . . . . . . . . Electromagnetic 3641 | . . . . . . 5 22 . . . 237 . . . 1011 . . . . . 1711 . . . . . . . . . 655 Impact 775 | . . . . . . . . . . . . . . . . . . . . . . . . . . . . 775 . . . Slashing . | . . . . . . . . . . . . . . . . . . . . . . . . . . . . . . . . Piercing 129 | . . . . . . . . . . . . . . . . . . . . . . . . . . 129 . . . . . Entropic 919 | . . . . . . . . . . . . . . . . . . . . . . . . . . . . . . . 919 Phasic 1848 | . . . . . . . . . . . . . . . 1848 . . . . . . . . . . . . . . . . Highest Corruption 8 | . . 6 6 6 . 5 5 5 1 1 . . . . . . . . . . 8 3 4 4 . . 1 3 . 6 4 Average Corruption 3 | . . 6 6 6 . 4 5 3 1 1 . . . . . . . . . . 2 2 3 3 . . 1 1 . 3 2 Corruption Purged 19 | . . . . . . . . 4 . . . . . . . . . . . . . . . 4 . . 1 4 . 6 . Corruption Blocked 19 | . . . . . . . . . . . . . . . . . . . . . . . . . . . . 15 4 . . Effects 246 | . . 17 14 2 . 22 46 19 2 16 . . . . . . . . . . 1 20 34 9 . . . 2 . 25 17 Message Errors 69 | . . 3 2 . . 4 19 7 1 4 . . . . . . . . . . . 2 10 3 . . . . . 9 5 Matter Fused 64 | . . 6 4 . . 10 9 4 . 6 . . . . . . . . . . . 7 8 2 . . . 1 . 4 3 Heat Flow Errors 20 | . . 2 2 1 . 1 4 1 . . . . . . . . . . . . . 4 2 1 . . . . . 2 . Energy Discharges 30 | . . . 2 1 . 1 7 4 1 1 . . . . . . . . . . . 4 4 . . . . 1 . 1 3 Data Loss (minor) 22 | . . . 4 . . 1 2 1 . 3 . . . . . . . . . . . 1 5 2 . . . . . 2 1 Data Loss (major) 20 | . . 6 . . . 2 3 1 . 1 . . . . . . . . . . . 1 1 1 . . . . . 3 1 Misfires 7 | . . . . . . 1 1 1 . 1 . . . . . . . . . . . . 2 . . . . . . . 1 Alerts 9 | . . . . . . 2 1 . . . . . . . . . . . . . . 1 1 . . . . . . 3 1 Weapon Failures 5 | . . . . . . . . . . . . . . . . . . . . . 1 . 1 . . . . . . 1 2 Overload Shots . | . . . . . . . . . . . . . . . . . . . . . . . . . . . . . . . . Overflow Damage 3377 | . . 44 . 11 58 248 . . . . 50 41 18 . 947 109 259 52 40 . 247 185 27 10 . 56 80 395 . 131 369 Projectiles 2403 | . . . . . 27 122 . . . . 22 41 18 . 869 109 57 52 40 . 146 185 27 10 . 56 80 42 . 131 369 Explosions 621 | . . 44 . 11 31 126 . . . . 28 . . . 78 . 202 . . . 101 . . . . . . . . . . Melee 353 | . . . . . . . . . . . . . . . . . . . . . . . . . . . . 353 . . . Knockbacks 52 | . . . . . 1 17 . . . . 1 . 3 . 29 . . . . . . . . . . . . 1 . . . Impact 1 | . . . . . . . . . . . . . . . . . . . . . . . . . . . . 1 . . . Kinetic 48 | . . . . . 1 15 . . . . 1 . 3 . 28 . . . . . . . . . . . . . . . . Secondary 3 | . . . . . . 2 . . . . . . . . 1 . . . . . . . . . . . . . . . . Self-Inflicted Damage 593 | . . 164 . 31 45 . . . . . 140 . . . . . 66 . . . 147 . . . . . . . . . . Shots 13 | . . 5 . 1 2 . . . . . 2 . . . . . 1 . . . 2 . . . . . . . . . . Rammed 1 | . . . . . . . . . . . 1 . . . . . . . . . . . . . . . . . . . . Targets Rammed 2 | . . . . . . . . . . . 1 . . . . . . . . . . 1 . . . . . . . . . Kicked 1 | . . . . . . . . . . . . . . . . . . . . . . 1 . . . . . . . . . Crushed . | . . . . . . . . . . . . . . . . . . . . . . . . . . . . . . . . Highest Temperature 510 | . 2 279 294 312 363 380 226 211 . 36 510 150 343 . 433 3 . 4 99 18 101 232 212 222 . 6 3 13 1 210 198 Average Temperature 71 | . 2 108 121 167 77 104 79 96 . 21 138 42 111 . 64 2 . 4 27 9 28 68 109 52 . 4 3 13 1 51 20 Received Heat Transfer 4418 | . 141 27 . 54 801 900 . . . 1 273 . 105 . 418 . . 290 162 9 189 174 . 262 . 72 54 162 9 81 234 Effects 15 | . . . 1 . 2 4 . . . . 5 . 2 . 1 . . . . . . . . . . . . . . . . Shutdowns 4 | . . . . . . 1 . . . . 2 . . . 1 . . . . . . . . . . . . . . . . Energy Bleed 3 | . . . 1 . . . . . . . 1 . 1 . . . . . . . . . . . . . . . . . . Interference 6 | . . . . . 2 3 . . . . . . 1 . . . . . . . . . . . . . . . . . . Damage (minor) 2 | . . . . . . . . . . . 2 . . . . . . . . . . . . . . . . . . . . Siege Activations . | . . . . . . . . . . . . . . . . . . . . . . . . . . . . . . . . Robots Corrupted 8 | . . . . . . . . . . . . . . . 5 . . . . . 1 . . . . . . . . . 2 Combat Hostiles 7 | . . . . . . . . . . . . . . . 5 . . . . . . . . . . . . . . . 2 Parts Fried 24 | . . . . . . . . . . . . . . . . . . . 2 . 10 . 1 . . . . 6 . . 5 Impact Corruptions 8 | . . . . . . . . . . . . . . . . . . . . . . . . . . . . 8 . . . Robots Melted 3 | . . . . . . 1 . . . . . 1 . . . . . . . . . . . . . . 1 . . . . Combat Hostiles 2 | . . . . . . 1 . . . . . . . . . . . . . . . . . . . . 1 . . . . Parts Melted 33 | . . . . . 6 7 . . . . 1 1 . . . 1 . 1 1 . . 3 . 3 . . 1 1 . . 7 Heat Transferred 29020 | . . . . 111 3293 3691 100 . . 50 1450 250 525 . 75 575 150 1775 1700 400 950 1725 525 875 . 525 1025 1125 625 2150 5350 Parts Sabotaged 2 | . . . . . . . . . . . . . . . . . . . . . . . . . . . . . . . 2 Parts Stolen 3 | . . . . . . . . . . . . . 3 . . . . . . . . . . . . . . . . . . Parts Stripped . | . . . . . . . . . . . . . . . . . . . . . . . . . . . . . . . . Power Chain Reactions 3 | . . . . . . . . . . . 2 . . . . . . . . . 1 . . . . . . . . . . Missiles Intercepted . | . . . . . . . . . . . . . . . . . . . . . . . . . . . . . . . . Alert | -11 -10 -10 -10 -9 -8 -7 -7 -7 -7 -6 -6 -6 -6 -6 -6 -5 -5 -5 -5 -5 -5 -4 -4 -4 -4 -3 -3 -3 -2 -2 -1 ------- Run | Scr Mat Min Exi Min Mat Fac Low Low Dat Pro Fac Low Low Zio Dee Pro Fac Ext Cet Arc Hub Fac Upp Upp War Pro Res Tes Res Qua Acc Peak Influence 1599 | 30 262 275 . 129 411 1182 . . . . 262 . . . . . 449 900 1023 486 1127 869 . . . . 343 295 210 334 1599 Initial 551 | . 19 47 . . 50 73 . . . . 16 . . . . . . 219 504 366 47 551 . . . . . . 165 101 159 Average 321 | 15 142 36 . 80 230 458 . . . . 116 . . . . . 44 494 810 331 433 589 . . . . 71 95 134 169 710 Maximum Alert Level 4 | . 1 1 . . 2 4 . . . . 1 . . . . . 2 3 3 2 4 3 . . . . 1 1 1 1 4 Low Security (%) 45 | 100 80 95 . 100 33 39 . . . . 90 . . . . . 94 . . 19 3 . . . . . 82 84 85 55 6 Level 1 24 | . 19 4 . . 65 20 . . . . 9 . . . . . 3 23 . 43 44 5 . . . . 17 15 14 44 23 Level 2 14 | . . . . . 1 7 . . . . . . . . . . 2 64 23 36 41 76 . . . . . . . . 8 Level 3 13 | . . . . . . 29 . . . . . . . . . . . 11 76 . 9 18 . . . . . . . . 48 Level 4 1 | . . . . . . 3 . . . . . . . . . . . . . . . . . . . . . . . . 13 Level 5 . | . . . . . . . . . . . . . . . . . . . . . . . . . . . . . . . . High Security . | . . . . . . . . . . . . . . . . . . . . . . . . . . . . . . . . Max Security . | . . . . . . . . . . . . . . . . . . . . . . . . . . . . . . . . Squads Dispatched 76 | . 3 . . . 4 11 . . . . 8 . . . . . 2 4 . . 8 8 . . . . 3 4 . 2 19 Investigation 6 | . . . . . 1 1 . . . . 3 . . . . . . 1 . . . . . . . . . . . . . Extermination 23 | . . . . . . 5 . . . . 2 . . . . . 1 . . . . 4 . . . . 2 2 . 1 6 Reinforcement 31 | . 3 . . . 3 4 . . . . 3 . . . . . 1 2 . . 6 1 . . . . . 2 . 1 5 Assault 15 | . . . . . . 1 . . . . . . . . . . . 1 . . 1 3 . . . . 1 . . . 8 Garrison 1 | . . . . . . . . . . . . . . . . . . . . . 1 . . . . . . . . . . Intercept . | . . . . . . . . . . . . . . . . . . . . . . . . . . . . . . . . Searches Triggered . | . . . . . . . . . . . . . . . . . . . . . . . . . . . . . . . . Data Miner Redirects 11 | . . . . . . . . . . . 2 . . . . . . 1 . . 1 2 . . . . . . . . 5 Construction Impeded 3 | . . . . . 1 . . . . . 1 . . . . . . . . . 1 . . . . . . . . . . Haulers Reinforced 5 | . . . . . . . . . . . . . . . . . . . . . 2 1 . . . . . 1 . . 1 Active Scanning Responses . | . . . . . . . . . . . . . . . . . . . . . . . . . . . . . . . . Cargo Convoy Interrupts 1 | . . . . . . 1 . . . . . . . . . . . . . . . . . . . . . . . . . Stealth | -11 -10 -10 -10 -9 -8 -7 -7 -7 -7 -6 -6 -6 -6 -6 -6 -5 -5 -5 -5 -5 -5 -4 -4 -4 -4 -3 -3 -3 -2 -2 -1 --------- Run | Scr Mat Min Exi Min Mat Fac Low Low Dat Pro Fac Low Low Zio Dee Pro Fac Ext Cet Arc Hub Fac Upp Upp War Pro Res Tes Res Qua Acc Distress Signals 22 | . 1 . . . 5 2 . . . . 1 . . . . . . 3 1 . 1 . . . 1 . 1 2 4 . . Communications Jammed 28 | . . . . . . . . . . . . . . . . . . . . . . . . . . . 1 4 . . 23 Distress Signals 27 | . . . . . . . . . . . . . . . . . . . . . . . . . . . . 4 . . 23 Times Spotted 599 | . 28 11 . 1 38 68 13 8 . 9 16 6 9 . 71 12 4 43 27 8 35 32 16 9 . 4 8 27 6 19 71 Peak Tracking Total 37 | . 4 3 9 1 7 11 8 3 . 3 4 2 5 . 37 5 3 9 6 1 25 6 5 4 . 2 2 4 3 4 7 Tactical Retreats 27 | . . . . . 2 3 1 . . . . . . . 4 1 . 2 3 . 3 1 3 1 . . . 1 . 1 1 Traps | -11 -10 -10 -10 -9 -8 -7 -7 -7 -7 -6 -6 -6 -6 -6 -6 -5 -5 -5 -5 -5 -5 -4 -4 -4 -4 -3 -3 -3 -2 -2 -1 ------- Run | Scr Mat Min Exi Min Mat Fac Low Low Dat Pro Fac Low Low Zio Dee Pro Fac Ext Cet Arc Hub Fac Upp Upp War Pro Res Tes Res Qua Acc Traps Triggered 16 | . . . . . . 2 . . . . . . . . . . . 1 . . 9 . . . . . . 1 . 3 . Indirectly 1 | . . . . . . . . . . . . . . . . . . . . . 1 . . . . . . . . . . Trap Hack Attempts . | . . . . . . . . . . . . . . . . . . . . . . . . . . . . . . . . Triggered . | . . . . . . . . . . . . . . . . . . . . . . . . . . . . . . . . Disarmed . | . . . . . . . . . . . . . . . . . . . . . . . . . . . . . . . . Reprogrammed . | . . . . . . . . . . . . . . . . . . . . . . . . . . . . . . . . Reused . | . . . . . . . . . . . . . . . . . . . . . . . . . . . . . . . . Traps Extracted . | . . . . . . . . . . . . . . . . . . . . . . . . . . . . . . . . Installed . | . . . . . . . . . . . . . . . . . . . . . . . . . . . . . . . . Triggered 27 | . . . . . . 3 1 . . 1 1 3 . . . . . . . . . . 1 1 15 1 . . . . . Most Traps Carried 2 | . . . . . . . . . . . . 2 2 2 2 . . . . . . . . . . . . . . . . Machines | -11 -10 -10 -10 -9 -8 -7 -7 -7 -7 -6 -6 -6 -6 -6 -6 -5 -5 -5 -5 -5 -5 -4 -4 -4 -4 -3 -3 -3 -2 -2 -1 ---------- Run | Scr Mat Min Exi Min Mat Fac Low Low Dat Pro Fac Low Low Zio Dee Pro Fac Ext Cet Arc Hub Fac Upp Upp War Pro Res Tes Res Qua Acc Machines Disabled 85 | . . . 3 . 5 8 1 1 . . . . . . 2 1 15 2 2 1 16 4 . . . . 2 9 3 7 3 Max in Single Turn 5 | . . . 1 . 1 2 . 1 . . . . . . 1 1 5 1 1 1 4 1 . . . . 1 1 1 1 1 Garrison Access 4 | . . . . . . . . . . . . . . . . . . . . . 1 . . . . . 1 . 1 . 1 Network Hub 2 | . . . . . . . . . . . . . . . . . . . . . 2 . . . . . . . . . . Machines Sabotaged . | . . . . . . . . . . . . . . . . . . . . . . . . . . . . . . . . Garrisons Compromised 1 | . . . . . . 1 . . . . . . . . . . . . . . . . . . . . . . . . . Overloaded Fab Kills . | . . . . . . . . . . . . . . . . . . . . . . . . . . . . . . . . Hacking | -11 -10 -10 -10 -9 -8 -7 -7 -7 -7 -6 -6 -6 -6 -6 -6 -5 -5 -5 -5 -5 -5 -4 -4 -4 -4 -3 -3 -3 -2 -2 -1 --------- Run | Scr Mat Min Exi Min Mat Fac Low Low Dat Pro Fac Low Low Zio Dee Pro Fac Ext Cet Arc Hub Fac Upp Upp War Pro Res Tes Res Qua Acc Machines Accessed 99 | . 8 . 2 . 12 8 1 3 4 . 8 . 1 1 . 1 2 7 2 1 1 4 1 1 7 1 2 7 1 8 5 Terminals 53 | . 5 . . . 8 4 . . . . 4 . . . . . 1 7 2 . 1 3 . . . 1 2 6 . 7 2 Fabricators 6 | . . . . . . 2 . . . . 1 . . . . . 1 . . . . 1 . . . . . . . . 1 Repair Stations 5 | . 1 . . . . . . . . . 2 . . . . . . . . . . . . . . . . 1 . . 1 Recycling Units 8 | . 2 . . . 2 1 . . . . 1 . . . . . . . . . . . . . . . . . 1 . 1 Scanalyzers 4 | . . . . . 2 1 . . . . . . . . . . . . . . . . . . . . . . . 1 . Garrison Access . | . . . . . . . . . . . . . . . . . . . . . . . . . . . . . . . . Total Hacks 325 | . 28 . 5 . 42 14 1 7 31 . 20 . 1 3 . 1 3 18 2 1 6 11 1 1 13 1 15 33 9 43 15 Successful 194 | . 18 . 5 . 30 5 1 7 31 . 12 . 1 3 . 1 1 8 2 1 3 5 1 1 13 1 6 13 3 20 2 Failed 130 | . 9 . . . 12 9 . . . . 8 . . . . . 2 10 . . 3 6 . . . . 9 20 6 23 13 Catastrophic 38 | . . . . . 1 2 . . . . 3 . . . . . 1 6 . . 1 4 . . . . 3 6 1 4 6 Database Lockouts 1 | . 1 . . . . . . . . . . . . . . . . . . . . . . . . . . . . . . Manual 136 | . 14 . 1 . 18 8 . . . . 11 . . . . . 2 7 2 . 5 5 . . 1 . 7 21 9 15 10 Terminals 181 | . 18 . . . 27 7 . . . . 10 . . . . . 2 18 2 . 6 10 . . . 1 15 29 . 31 5 Fabricators 8 | . . . . . . 2 . . . . 1 . . . . . 1 . . . . 1 . . . . . . . . 3 Repair Stations 14 | . 3 . . . . . . . . . 4 . . . . . . . . . . . . . . . . 4 . . 3 Recycling Units 35 | . 7 . . . 6 4 . . . . 5 . . . . . . . . . . . . . . . . . 9 . 4 Scanalyzers 22 | . . . . . 9 1 . . . . . . . . . . . . . . . . . . . . . . . 12 . Garrison Access . | . . . . . . . . . . . . . . . . . . . . . . . . . . . . . . . . Terminal Hacks 121 | . 6 . 5 . 14 . 1 7 31 . 1 . 1 3 . 1 . 4 2 1 2 3 1 1 13 1 6 5 . 10 2 Record 38 | . . . 4 . . . . 5 11 . . . . . . 1 . 1 1 1 . . . . 11 1 1 . . 1 . Part Schematic 16 | . . . . . . . . . 12 . . . . 3 . . . . . . . . . . . . . . . 1 . Robot Schematic 5 | . . . . . . . . . 5 . . . . . . . . . . . . . . . . . . . . . . Robot Analysis 9 | . 2 . . . 6 . . . . . . . . . . . . . . . . . . . . . . . . 1 . Prototype ID Bank 10 | . . . . . 3 . . . 3 . 1 . . . . . . 1 . . 1 . . . . . . . . 1 . Open Door 12 | . . . . . . . 1 2 . . . . 1 . . . . . 1 . . . 1 1 2 . . 1 . 1 1 Level Access Points 4 | . . . . . . . . . . . . . . . . . . . . . 1 . . . . . . 1 . 1 1 Branch Access Points 3 | . . . . . 1 . . . . . . . . . . . . . . . . 1 . . . . 1 . . . . Emergency Access Points 2 | . . . . . . . . . . . . . . . . . . . . . . 1 . . . . . . . 1 . Terminal Index 1 | . 1 . . . . . . . . . . . . . . . . . . . . . . . . . . . . . . Alert Level 2 | . . . . . . . . . . . . . . . . . . . . . . . . . . . 1 . . 1 . Unreport Threat 4 | . . . . . 1 . . . . . . . . . . . . . . . . . . . . . 2 . . 1 . Locate Traps 9 | . 2 . . . 2 . . . . . . . . . . . . 2 . . . 1 . . . . . 1 . 1 . Recall Extermination 1 | . . . . . . . . . . . . . . . . . . . . . . . . . . . . 1 . . . Recall Assault 1 | . . . . . . . . . . . . . . . . . . . . . . . . . . . 1 . . . . Hauler Manifests 3 | . 1 . . . 1 . . . . . . . . . . . . . . . . . . . . . . 1 . . . EX-Prototype ID Bank 1 | . . . 1 . . . . . . . . . . . . . . . . . . . . . . . . . . . . Fabricator Hacks 3 | . . . . . . 1 . . . . . . . . . . 1 . . . . 1 . . . . . . . . . Network Status 3 | . . . . . . 1 . . . . . . . . . . 1 . . . . 1 . . . . . . . . . Repair Station Hacks 8 | . 2 . . . . . . . . . 4 . . . . . . . . . . . . . . . . 2 . . . Scan Component 4 | . 1 . . . . . . . . . 2 . . . . . . . . . . . . . . . . 1 . . . Repair 4 | . 1 . . . . . . . . . 2 . . . . . . . . . . . . . . . . 1 . . . Recycling Unit Hacks 6 | . 3 . . . 1 . . . . . 2 . . . . . . . . . . . . . . . . . . . . Retrieve Matter 2 | . 1 . . . . . . . . . 1 . . . . . . . . . . . . . . . . . . . . Retrieve Components 4 | . 2 . . . 1 . . . . . 1 . . . . . . . . . . . . . . . . . . . . Scanalyzer 15 | . . . . . 6 1 . . . . . . . . . . . . . . . . . . . . . . . 8 . Insert Component 9 | . . . . . 5 1 . . . . . . . . . . . . . . . . . . . . . . . 3 . Analyze 6 | . . . . . 1 . . . . . . . . . . . . . . . . . . . . . . . . 5 . Garrison Access Hacks . | . . . . . . . . . . . . . . . . . . . . . . . . . . . . . . . . Unauthorized Hacks 41 | . 7 . . . 9 3 . . . . 5 . . . . . . 4 . . 1 1 . . . . . 6 3 2 . Terminals 26 | . 5 . . . 4 2 . . . . 2 . . . . . . 4 . . 1 1 . . . . . 5 . 2 . Assimilate 6 | . 2 . . . 1 . . . . . 2 . . . . . . . . . . . . . . . . 1 . . . Botnet 17 | . 2 . . . 2 2 . . . . . . . . . . . 4 . . 1 1 . . . . . 3 . 2 . Operators 3 | . 1 . . . 1 . . . . . . . . . . . . . . . . . . . . . . 1 . . . Fabricators . | . . . . . . . . . . . . . . . . . . . . . . . . . . . . . . . . Repair Stations 1 | . . . . . . . . . . . . . . . . . . . . . . . . . . . . 1 . . . Mechanics 1 | . . . . . . . . . . . . . . . . . . . . . . . . . . . . 1 . . . Recycling Units 14 | . 2 . . . 5 1 . . . . 3 . . . . . . . . . . . . . . . . . 3 . . Reject 5 | . 1 . . . 2 . . . . . 1 . . . . . . . . . . . . . . . . . 1 . . Recyclers 3 | . . . . . 1 . . . . . 1 . . . . . . . . . . . . . . . . . 1 . . Mask 6 | . 1 . . . 2 1 . . . . 1 . . . . . . . . . . . . . . . . . 1 . . Scanalyzers . | . . . . . . . . . . . . . . . . . . . . . . . . . . . . . . . . Garrison Access . | . . . . . . . . . . . . . . . . . . . . . . . . . . . . . . . . Data Cores Recovered 1 | . . . . . . . . . . . . . . . . . . . . . . 1 . . . . . . . . . Used . | . . . . . . . . . . . . . . . . . . . . . . . . . . . . . . . . Hacking Detections 63 | . 7 . . . 11 7 . . . . 7 . . . . . 1 7 . . 1 3 . . . . 2 5 1 6 5 Full Trace Events 5 | . . . . . 1 1 . . . . 2 . . . . . . 1 . . . . . . . . . . . . . Feedback Events . | . . . . . . . . . . . . . . . . . . . . . . . . . . . . . . . . Feedback Blocked . | . . . . . . . . . . . . . . . . . . . . . . . . . . . . . . . . Robot Schematics Acquired 12 | . . . . . . . . . 5 . . . . . . . . . . . . . . . . . . 4 . 3 . Robots Built . | . . . . . . . . . . . . . . . . . . . . . . . . . . . . . . . . Authchips . | . . . . . . . . . . . . . . . . . . . . . . . . . . . . . . . . Time . | . . . . . . . . . . . . . . . . . . . . . . . . . . . . . . . . Total Robot Build Rating . | . . . . . . . . . . . . . . . . . . . . . . . . . . . . . . . . Part Schematics Acquired 31 | . . . . . 1 . . . 12 . . . . 3 . . . . . . . . . . . . . 8 . 7 . Parts Built . | . . . . . . . . . . . . . . . . . . . . . . . . . . . . . . . . Authchips . | . . . . . . . . . . . . . . . . . . . . . . . . . . . . . . . . Time . | . . . . . . . . . . . . . . . . . . . . . . . . . . . . . . . . Total Part Build Rating . | . . . . . . . . . . . . . . . . . . . . . . . . . . . . . . . . Parts Repaired 4 | . 1 . . . . . . . . . 2 . . . . . . . . . . . . . . . . 1 . . . Time 143 | . 26 . . . . . . . . . 91 . . . . . . . . . . . . . . . . 26 . . . Parts Recycled . | . . . . . . . . . . . . . . . . . . . . . . . . . . . . . . . . Recycled Matter . | . . . . . . . . . . . . . . . . . . . . . . . . . . . . . . . . Retrieved Matter 197 | . 155 . . . . . . . . . 42 . . . . . . . . . . . . . . . . . . . . Retrieved Components 36 | . 17 . . . 10 . . . . . 9 . . . . . . . . . . . . . . . . . . . . Parts Scanalyzed 5 | . . . . . 2 . . . . . . . . . . . . . . . . . . . . . . . . 3 . Part Schematics Acquired 4 | . . . . . 1 . . . . . . . . . . . . . . . . . . . . . . . . 3 . Parts Damaged . | . . . . . . . . . . . . . . . . . . . . . . . . . . . . . . . . Bothacking | -11 -10 -10 -10 -9 -8 -7 -7 -7 -7 -6 -6 -6 -6 -6 -6 -5 -5 -5 -5 -5 -5 -4 -4 -4 -4 -3 -3 -3 -2 -2 -1 ------------ Run | Scr Mat Min Exi Min Mat Fac Low Low Dat Pro Fac Low Low Zio Dee Pro Fac Ext Cet Arc Hub Fac Upp Upp War Pro Res Tes Res Qua Acc Used RIF Installer . | . . . . . . . . . . . . . . . . . . . . . . . . . . . . . . . . Robots Hacked . | . . . . . . . . . . . . . . . . . . . . . . . . . . . . . . . . Non-combat . | . . . . . . . . . . . . . . . . . . . . . . . . . . . . . . . . Combat . | . . . . . . . . . . . . . . . . . . . . . . . . . . . . . . . . Robot Hacks Applied . | . . . . . . . . . . . . . . . . . . . . . . . . . . . . . . . . Relay Couplers Released 10 | . . . . . . 4 . . . . . . . . . . . . . . 1 . . . . . 1 . 3 . 1 Machine Destruction 3 | . . . . . . . . . . . . . . . . . . . . . 1 . . . . . 1 . . . 1 Programmers 7 | . . . . . . 4 . . . . . . . . . . . . . . . . . . . . . . 3 . . Fabnet Peak Effective % . | . . . . . . . . . . . . . . . . . . . . . . . . . . . . . . . . Robots Rewired 14 | . . . . . . . 2 . . . . . . . . . . 12 . . . . . . . . . . . . . Allies Hacked . | . . . . . . . . . . . . . . . . . . . . . . . . . . . . . . . . Hacks Repelled . | . . . . . . . . . . . . . . . . . . . . . . . . . . . . . . . . Allies | -11 -10 -10 -10 -9 -8 -7 -7 -7 -7 -6 -6 -6 -6 -6 -6 -5 -5 -5 -5 -5 -5 -4 -4 -4 -4 -3 -3 -3 -2 -2 -1 -------- Run | Scr Mat Min Exi Min Mat Fac Low Low Dat Pro Fac Low Low Zio Dee Pro Fac Ext Cet Arc Hub Fac Upp Upp War Pro Res Tes Res Qua Acc Total Allies 25 | . 2 . . . . . 2 . . 1 1 . . 2 . . . 16 . . . . . . . . . 1 . . . Largest Group 7 | . 2 2 . . . . 2 2 2 3 1 . . 2 2 . . 7 3 . . . . . . . . 1 . . . Highest-Rated Group 306 | . 20 20 . . . . 62 62 62 158 10 . . 51 51 . . 306 218 . . . . . . . . 26 . . . Highest-Rated Ally 159 | . 10 10 . . . . 32 32 32 96 10 . . 31 31 . . 159 159 . . . . . . . . 26 . . . Total Orders 44 | . . . . 2 . 4 5 3 . 5 5 5 2 . . . . 1 1 . 2 3 . . . . 2 4 . . . ROAM 1 | . . . . . . . . . . . . . . . . . . . 1 . . . . . . . . . . . . GUARD 1 | . . . . . . . . . . . . . . . . . . 1 . . . . . . . . . . . . . EXPLORE 14 | . . . . 1 . 2 . . . . 4 . . . . . . . . . 1 2 . . . . 2 2 . . . RETURN 28 | . . . . 1 . 2 5 3 . 5 1 5 2 . . . . . . . 1 1 . . . . . 2 . . . Ally Attacks 582 | . . . . . . 75 69 96 . 61 . 52 49 . 9 . . 135 36 . . . . . . . . . . . . Total Damage 12114 | . . . . . . 1418 2215 2112 . 1404 . 989 783 . 82 . . 2206 905 . . . . . . . . . . . . Kills 102 | . . . . . . 13 19 16 . 13 . 8 5 . . . . 22 6 . . . . . . . . . . . . Allies Corrupted 1 | . . . . . . . . . . . . . . . . . . . . . . . . . . . . 1 . . . Allies Melted 4 | . . . . . . . . . . 1 . . . . . . . . . . . . . . 2 . . . 1 . . Intel | -11 -10 -10 -10 -9 -8 -7 -7 -7 -7 -6 -6 -6 -6 -6 -6 -5 -5 -5 -5 -5 -5 -4 -4 -4 -4 -3 -3 -3 -2 -2 -1 ------- Run | Scr Mat Min Exi Min Mat Fac Low Low Dat Pro Fac Low Low Zio Dee Pro Fac Ext Cet Arc Hub Fac Upp Upp War Pro Res Tes Res Qua Acc Robot Analysis Total 9 | . 2 . . . 6 . . . . . . . . . . . . . . . . . . . . . . . . 1 . Derelict Logs Recovered 17 | . . 2 . . . . 2 3 . 3 . . 2 2 . 1 . . . . . . 1 1 . . . . . . . Drone Launches 302 | . . . . 1 . 59 124 36 11 27 4 28 5 . . . . . . . 1 2 . . . . 2 2 . . . Drone Recoveries 270 | . . . . 1 . 54 105 41 . 36 4 19 5 . . . . . . . . 2 . . . . 2 1 . . . Exploration | -11 -10 -10 -10 -9 -8 -7 -7 -7 -7 -6 -6 -6 -6 -6 -6 -5 -5 -5 -5 -5 -5 -4 -4 -4 -4 -3 -3 -3 -2 -2 -1 ------------- Run | Scr Mat Min Exi Min Mat Fac Low Low Dat Pro Fac Low Low Zio Dee Pro Fac Ext Cet Arc Hub Fac Upp Upp War Pro Res Tes Res Qua Acc Turns Passed 51497 | 156 1115 2265 627 63 2643 2866 1678 1242 158 1944 1158 2461 2467 1892 5729 2039 300 1429 611 993 528 1898 1659 1768 1729 2252 655 1724 1126 1760 2562 Spaces Moved 22747 | 101 752 694 548 31 1338 1311 804 650 80 1020 546 1138 1261 1127 2522 938 110 406 202 78 147 798 728 861 817 796 240 711 372 769 851 Core 16 | 12 . . . . . . . . . . . . . . . . . 4 . . . . . . . . . . . . . Treads . | . . . . . . . . . . . . . . . . . . . . . . . . . . . . . . . . Legs 7633 | . . . . . . . . . . . . . . . 8 . . 255 202 78 147 798 728 861 817 796 240 711 372 769 851 Wheels 15097 | 89 752 694 548 31 1338 1311 804 650 80 1020 546 1138 1261 1127 2513 938 110 147 . . . . . . . . . . . . . Hover 1 | . . . . . . . . . . . . . . . 1 . . . . . . . . . . . . . . . . Flight . | . . . . . . . . . . . . . . . . . . . . . . . . . . . . . . . . Fastest Speed 50 | 50 90 110 110 110 110 145 180 180 180 150 150 160 160 160 145 175 190 190 210 210 210 185 185 185 176 176 176 125 175 175 185 Average Speed 174 | 85 107 110 110 110 145 160 184 180 180 179 155 191 186 163 179 179 190 241 210 210 219 199 185 185 182 186 178 174 186 175 216 Slowest Speed 2900 | 90 110 110 110 110 230 210 190 180 180 180 160 205 205 190 830 190 190 2900 240 210 300 300 186 185 186 230 219 176 228 219 226 Overloaded Moves . | . . . . . . . . . . . . . . . . . . . . . . . . . . . . . . . . Propulsion Burnouts . | . . . . . . . . . . . . . . . . . . . . . . . . . . . . . . . . Robots Hopped . | . . . . . . . . . . . . . . . . . . . . . . . . . . . . . . . . Cave-ins Triggered 2 | . . 1 . . . . . . . . . . . . . . . . . . . . . . . . . . . 1 . Teleports 1 | . . . . . . . . . . . . . . . . . . . . . . . . . . . . . . 1 . Exploration Rate (%) 67 | 4 99 83 71 18 79 50 99 93 69 90 28 98 98 85 91 96 8 66 86 85 38 20 87 92 97 96 11 83 26 84 22 Regions Visited 31 Branch Regions 22 Pre-discovered Areas 7 | . . . 1 . . . 1 1 1 1 . . . 1 . . . . . . . . 1 . . . . . . . . Known Exits Taken 21 | . . . . . . . . 1 . . 1 1 1 1 1 1 1 1 1 1 1 1 1 1 1 1 1 1 1 1 . Unknown Exits Taken 10 | 1 1 1 1 1 1 1 1 . 1 1 . . . . . . . . . . . . . . . . . . . . . Scrap Searched 37 | . . 1 . . . . 5 3 . 1 . 5 5 5 . 1 . . . . . . 1 5 . 5 . . . . . Spaces Dug 252 | . . 22 . . 10 2 . . . 11 3 . . 3 . . 21 21 . . 16 28 . 5 . 7 2 35 4 24 38 Terrain Destroyed 1354 | . . 142 . 35 77 57 . . . 25 13 6 10 3 21 18 59 57 17 5 374 65 41 22 . 25 17 45 12 48 160 Melee 17 | . . 1 . . . 1 . . . 1 1 . . 3 . . . . . . . . . . . . . 10 . . . Projectile 673 | . . . . . 24 30 . . . . 5 6 10 . 21 18 14 57 17 5 45 65 41 22 . 25 17 35 12 48 156 AOE 664 | . . 141 . 35 53 26 . . . 24 7 . . . . . 45 . . . 329 . . . . . . . . . 4 Terrain Rammed . | . . . . . . . . . . . . . . . . . . . . . . . . . . . . . . . . Walls Destroyed . | . . . . . . . . . . . . . . . . . . . . . . . . . . . . . . . . Machines Disabled . | . . . . . . . . . . . . . . . . . . . . . . . . . . . . . . . . Actions | -11 -10 -10 -10 -9 -8 -7 -7 -7 -7 -6 -6 -6 -6 -6 -6 -5 -5 -5 -5 -5 -5 -4 -4 -4 -4 -3 -3 -3 -2 -2 -1 --------- Run | Scr Mat Min Exi Min Mat Fac Low Low Dat Pro Fac Low Low Zio Dee Pro Fac Ext Cet Arc Hub Fac Upp Upp War Pro Res Tes Res Qua Acc Total 32510 | 145 938 2159 574 53 1820 1872 992 722 94 1126 793 1423 1326 1174 3640 1249 180 748 290 889 262 963 985 985 1056 1520 419 1074 772 1058 1209 Wait 6970 | 6 85 1408 . 13 191 324 164 61 11 86 158 228 11 2 838 287 52 124 4 786 16 66 211 87 199 653 94 173 345 150 137 Move 22714 | 100 751 693 547 30 1337 1310 803 649 79 1019 545 1137 1260 1126 2521 937 109 405 201 77 146 797 727 860 816 795 239 710 371 767 850 Hop . | . . . . . . . . . . . . . . . . . . . . . . . . . . . . . . . . Pick Up 431 | 15 23 10 4 . 61 28 5 3 . 3 15 15 15 18 73 1 1 5 8 . 3 9 2 2 7 4 15 50 7 18 11 Fast Attach 92 | 2 1 1 . . 11 5 1 1 2 2 5 4 . . 10 . . 1 6 3 4 1 3 2 6 9 2 3 3 4 . Attach 123 | 5 2 2 2 1 16 17 . 1 . 6 7 5 8 1 19 . . 1 . . 3 3 . . 3 2 2 6 1 4 6 Detach 30 | . 1 . 2 1 . . . . . . 1 3 . . 3 . . . 1 . 2 2 . . . 2 6 3 1 1 1 Swap 208 | 1 2 10 1 1 21 21 2 2 . 3 14 . 2 5 13 . . . 3 . 4 7 3 3 5 6 19 14 5 15 26 Drop 490 | 3 11 11 13 . 47 22 4 4 2 4 14 19 7 18 84 3 1 8 17 12 10 7 13 6 20 23 19 40 18 23 7 Fire 1225 | 13 62 23 5 7 136 144 3 1 . 2 32 12 23 . 79 21 17 54 50 11 54 70 26 25 . 20 23 51 21 74 166 Melee 43 | . . 1 . . . 1 . . . 1 1 . . 4 . . . . . . . . . . . 6 . 24 . . 5 Ram 1 | . . . . . . . . . . . 1 . . . . . . . . . . . . . . . . . . . . Kick 1 | . . . . . . . . . . . . . . . . . . . . . . 1 . . . . . . . . . Crush . | . . . . . . . . . . . . . . . . . . . . . . . . . . . . . . . . Escape Stasis 29 | . . . . . . . . . . . . . . . . . . 8 . . 20 . . . . . . . . 1 . Rewire 153 | . . . . . . . 10 . . . . . . . . . . 142 . . . . . . . . . . . 1 . Trap . | . . . . . . . . . . . . . . . . . . . . . . . . . . . . . . . . Miscellaneous . | . . . . . . . . . . . . . . . . . . . . . . . . . . . . . . . . Route ------- -11/Scrapyard -10/Materials (discovered 4 exits: [*Mat x3] / [*Min]) -10/Mines (discovered 3 exits: [*Mat x2] / *Exi) -10/Exiles -9/Mines -8/Materials (discovered 3 exits: *Fac x3) -7/Factory (discovered 4 exits: *Fac x3 / *Low) -7/Lower Caves -7/Lower Caves (discovered 2 exits: *Fac / *Dat) -7/Data Miner -6/Proximity Caves -6/Factory -6/Lower Caves -6/Lower Caves (discovered 2 exits: *Fac / *Zio) -6/Zion (discovered 2 exits: *Dee / *Pro) -6/Deep Caves -5/Proximity Caves -5/Factory (discovered 4 exits: Fac x2 / *Ext x2) -5/Extension (discovered 2 exits: *Fac / *Cet) -5/Cetus (discovered 2 exits: *Fac / *Arc) -5/Archives (discovered 2 exits: *Hub x2) -5/Hub_04(d) (discovered 4 exits: *Fac x4) -4/Factory (discovered 3 exits: *Res / *Upp x2) -4/Upper Caves -4/Upper Caves (discovered 2 exits: *Res / *War) -4/Warlord -3/Proximity Caves -3/Research (discovered 3 exits: Arm / *Tes x2) -3/Testing -2/Research -2/Quarantine -1/Access To Epsilon Eridani History --------- Turn | Location | Event 42 | -11/Scrapyard | Discovered new exit (range 15) 157 | -11/Scrapyard | Entered Materials 316 | -10/Materials | Build established: Mutant 466 | -10/Materials | Discovered new exit (range 5) 603 | -10/Materials | Repaired Assault Rifle 661 | -10/Materials | Central database locked down 1004 | -10/Materials | Discovered new exit (range 8) 1090 | -10/Materials | Discovered new exit (range 12) 1211 | -10/Materials | Discovered new exit (range 16) 1272 | -10/Materials | Entered Mines 1272 | -10/Mines | Accompanied by 2 allies 1335 | -10/Mines | Discovered new exit (range 7) 1438 | -10/Mines | Found a damaged Exp. Sensor Array with a note attached 1441 | -10/Mines | Found Prototype Device 1453 | -10/Mines | Learned Materials interactive machine intel 1523 | -10/Mines | Found a hidden stash of uninstalled traps 1546 | -10/Mines | Assembled infested the area 2971 | -10/Mines | Core integrity fell below 50% 2979 | -10/Mines | Crushed by falling debris 3443 | -10/Mines | Discovered new exit (range 7) 3460 | -10/Mines | Core integrity fell below 20% 3532 | -10/Mines | Deemed a non-threat by the Exiles lab entrance 3532 | -10/Mines | Discovered new exit (range 5) 3537 | -10/Mines | Entered Exiles 3567 | -10/Exiles | Met 8R-AWN 3587 | -10/Exiles | Met EX-HEX 3618 | -10/Exiles | Met EX-BIN 3645 | -10/Exiles | Met EX-DEC 3650 | -10/Exiles | Learned location of Zion (-6) 3684 | -10/Exiles | Aligned with FarCom system 3685 | -10/Exiles | Given EX-Vault access code 3713 | -10/Exiles | Build established: Scavenger-Mutant 3715 | -10/Exiles | Opened EX-Vault 3723 | -10/Exiles | Found AWS/Autocannon 3751 | -10/Exiles | Warned to stay clear of 0b10 Research branches 3974 | -10/Exiles | Found Army-in-a-Box 3976 | -10/Exiles | Found Supersonic Drone Bay 4067 | -10/Exiles | Discovered new exit (range 12) 4131 | -10/Exiles | Attacked by the Exiles 4164 | -10/Exiles | Stole three prototypes: Supersonic Drone Bay, Army-in-a-Box, AWS/Autocannon 4164 | -10/Exiles | Entered Mines 4168 | -9/Mines | Discovered new exit (range 14) 4206 | -9/Mines | Met a Derelict bent on vengeance 4227 | -9/Mines | Entered Materials 4227 | -8/Materials | Evolved 4 slots: Utility x4 4228 | -8/Materials | Loaded intel: 19 interactive machine locations 4547 | -8/Materials | Lost 3 parts (1p2n) 4879 | -8/Materials | Core integrity fell below 50% 4909 | -8/Materials | Lost 6 parts (1p2n3u) 5063 | -8/Materials | Discovered new exit (range 10) 5224 | -8/Materials | Discovered new exit (range 16) 5819 | -8/Materials | Identified Exp. Sensor Array 6607 | -8/Materials | Discovered new exit (range 4) 6697 | -8/Materials | Build established: Mutant 6870 | -8/Materials | Entered Factory 6870 | -7/Factory | Evolved 2 slots: Utility x2 7463 | -7/Factory | Discovered new exit (range 14) 8577 | -7/Factory | Cargo convoy interrupted 8579 | -7/Factory | Lost 7 parts (1p1n4u1w) 8754 | -7/Factory | Discovered new exit (range 23) 8758 | -7/Factory | Discovered new exit (range 77) 8759 | -7/Factory | Discovered new exit (range 91) 8968 | -7/Factory | Build established: Scavenger-Mutant 9670 | -7/Factory | First assault squad dispatched 9736 | -7/Factory | Core integrity fell below 50% 9736 | -7/Factory | Entered Lower Caves 9736 | -7/Lower Caves | Accompanied by 1 ally 9736 | -7/Lower Caves | Spotted DC-P1S(f) 9737 | -7/Lower Caves | Encountered a Master Thief 9737 | -7/Lower Caves | Allies destroyed DC-P1S(f) 9795 | -7/Lower Caves | Build established: Mutant 10184 | -7/Lower Caves | Learned Factory security intel 10621 | -7/Lower Caves | Learned location of Extension (-5) 11061 | -7/Lower Caves | Attracted the attention of an 0b10 outpost 11205 | -7/Lower Caves | Discovered new exit (range 15) 11414 | -7/Lower Caves | Entered another Lower Caves area 11414 | -7/Lower Caves | Accompanied by 16 allies 11414 | -7/Lower Caves | Spotted RO-E46(f) 11414 | -7/Lower Caves | Spotted JF-I7A(f) 11414 | -7/Lower Caves | Discovered new exit (range 8) 11415 | -7/Lower Caves | Encountered a Master Thief 11415 | -7/Lower Caves | Encountered a Master Thief 11415 | -7/Lower Caves | Allies destroyed RO-E46(f) 11423 | -7/Lower Caves | Allies destroyed JF-I7A(f) 11707 | -7/Lower Caves | Encountered a Warlord checkpoint 12091 | -7/Lower Caves | Identified exit to Data Miner 12225 | -7/Lower Caves | Learned Research trap positions 12225 | -7/Lower Caves | Learned Factory emergency access door positions 12225 | -7/Lower Caves | Learned Armory security intel 12225 | -7/Lower Caves | Learned Armory terminal intel 12435 | -7/Lower Caves | Learned Factory emergency access door positions 12656 | -7/Lower Caves | Entered Data Miner 12656 | -7/Data Miner | Accompanied by 2 allies 12656 | -7/Data Miner | Discovered new exit (range 6) 12692 | -7/Data Miner | Met Data Miner 12729 | -7/Data Miner | Learned location of Section 7 (-2) 12729 | -7/Data Miner | Acquired the access code to Warlord's prototype stash 12755 | -7/Data Miner | Received God Mode back door access code from Data Miner 12814 | -7/Data Miner | Entered Proximity Caves 12814 | -6/Proximity Caves | Accompanied by 13 allies 13136 | -6/Proximity Caves | Escorted by Enhanced Grunt 13545 | -6/Proximity Caves | Learned Factory terminal intel 14056 | -6/Proximity Caves | P-60 Hacker assimilated allied Fighter 4a 14369 | -6/Proximity Caves | Discovered new exit (range 13) 14758 | -6/Proximity Caves | Entered Factory 14758 | -6/Factory | Evolved 2 slots: Power x1, Weapon x1 14761 | -6/Factory | Loaded intel: 26 terminal locations 14963 | -6/Factory | Incoming investigation squad redirected 15143 | -6/Factory | Repaired Corrupted Imp. Signal Interpreter 15185 | -6/Factory | Build established: Scavenger-Tank 15207 | -6/Factory | Incoming investigation squad redirected 15254 | -6/Factory | Repaired Imp. Light Armor Plating 15383 | -6/Factory | Discovered new exit (range 62) 15560 | -6/Factory | Identified exit to Lower Caves 15916 | -6/Factory | Entered Lower Caves 16554 | -6/Lower Caves | Build established: Mutant 17682 | -6/Lower Caves | Spotted B-75 Beast 17690 | -6/Lower Caves | Allies destroyed B-75 Beast 17758 | -6/Lower Caves | Discovered new exit (range 7) 17770 | -6/Lower Caves | Identified exit to Lower Caves 18087 | -6/Lower Caves | Build established: Skirmisher 18377 | -6/Lower Caves | Entered another Lower Caves area 18377 | -6/Lower Caves | Accompanied by 7 allies 18574 | -6/Lower Caves | Discovered new exit (range 8) 18649 | -6/Lower Caves | Build established: Gunner 19149 | -6/Lower Caves | Identified exit to Zion 19543 | -6/Lower Caves | Learned location of 1 exit from Factory 19575 | -6/Lower Caves | Spotted B-75 Beast 19673 | -6/Lower Caves | Allies destroyed B-75 Beast 19922 | -6/Lower Caves | Spotted 4E-P9E(f) 19924 | -6/Lower Caves | Spotted 5T-QMT(f) 19925 | -6/Lower Caves | Encountered a Master Thief 19925 | -6/Lower Caves | Spotted AK-F9L(f) 19926 | -6/Lower Caves | Encountered a Master Thief 19926 | -6/Lower Caves | Spotted GG-CXO(f) 19926 | -6/Lower Caves | Army-in-a-Box stolen by Master Thief 19927 | -6/Lower Caves | Encountered a Master Thief 19927 | -6/Lower Caves | Hvy. Plasma Cannon stolen by Master Thief 19929 | -6/Lower Caves | Magnetic Acceleration Cannon stolen by Master Thief 19929 | -6/Lower Caves | Spotted IB-F7V(f) 19930 | -6/Lower Caves | Encountered a Master Thief 19948 | -6/Lower Caves | Destroyed IB-F7V(f) 19959 | -6/Lower Caves | Encountered a Master Thief 19997 | -6/Lower Caves | Destroyed 4E-P9E(f) 20222 | -6/Lower Caves | Build established: Scavenger-Tank 20616 | -6/Lower Caves | Build established: Scavenger-Skirmisher 20844 | -6/Lower Caves | Entered Zion 20975 | -6/Zion | Discovered new exit (range 14) 20996 | -6/Zion | Identified exit to Proximity Caves 21098 | -6/Zion | Learned location of 1 exit from Lower Caves 21345 | -6/Zion | Found CR-A16's Pointy Stick 21567 | -6/Zion | Learned location of 1 exit from Factory 21904 | -6/Zion | Gained Derelict followers 22044 | -6/Zion | Discovered new exit (range 4) 22047 | -6/Zion | Saw the warning signs outside the Deep Caves entrance 22049 | -6/Zion | Identified exit to Deep Caves 22712 | -6/Zion | Build established: Scavenger-Tank 22736 | -6/Zion | Entered Deep Caves 22736 | -6/Deep Caves | Accompanied by 2 allies 22981 | -6/Deep Caves | Z-Facility disabled 23000 | -6/Deep Caves | Attacked by Z-Imprinter 23023 | -6/Deep Caves | Destroyed Z-Imprinter 23323 | -6/Deep Caves | Found Prototype Protection 23323 | -6/Deep Caves | Identified Zio. Heavy Carapace 23395 | -6/Deep Caves | Found Prototype Protection 23441 | -6/Deep Caves | Found Prototype Protection 24122 | -6/Deep Caves | Discovered new exit (range 7) 24133 | -6/Deep Caves | Identified exit to Proximity Caves 24461 | -6/Deep Caves | Identified Zio. Weapon Casing (x2) 25942 | -6/Deep Caves | Spotted as-08100 26020 | -6/Deep Caves | Destroyed as-08100 26041 | -6/Deep Caves | Lost 5 parts (5u) 26617 | -6/Deep Caves | Spotted as-31265 26631 | -6/Deep Caves | Triggered Deep Caves wall 26631 | -6/Deep Caves | Spotted AS-67148 26631 | -6/Deep Caves | Spotted AS-82923 26634 | -6/Deep Caves | Destroyed AS-82923 26634 | -6/Deep Caves | Destroyed AS-67148 26650 | -6/Deep Caves | Exposed GOLEM chamber 26655 | -6/Deep Caves | Destroyed 32 combat bots 26699 | -6/Deep Caves | Lost 5 parts (2p2u1w) 26709 | -6/Deep Caves | Found Corrupted GOLEM Unit 26809 | -6/Deep Caves | Destroyed 10 combat bots 26941 | -6/Deep Caves | Found GOLEM Unit 26958 | -6/Deep Caves | Found GOLEM Unit 26972 | -6/Deep Caves | Found GOLEM Unit 26995 | -6/Deep Caves | Found GOLEM Unit 27300 | -6/Deep Caves | Build established: Golem 27794 | -6/Deep Caves | Found GOLEM Unit 28086 | -6/Deep Caves | Build established: Mutant 28301 | -6/Deep Caves | Found GOLEM Unit 28465 | -6/Deep Caves | Entered Proximity Caves 28513 | -5/Proximity Caves | Found Alien Artifact 28665 | -5/Proximity Caves | Build established: Golem 30058 | -5/Proximity Caves | Learned Factory trap positions 30138 | -5/Proximity Caves | Discovered new exit (range 10) 30248 | -5/Proximity Caves | Identified exit to Factory 30504 | -5/Proximity Caves | Entered Factory 30504 | -5/Factory | Evolved 2 slots: Utility x2 30505 | -5/Factory | Identified exit to Extension 30506 | -5/Factory | Identified exit to Factory 30507 | -5/Factory | Loaded intel: 95 trap records 30804 | -5/Factory | Entered Extension 30853 | -5/Extension | Disrupted transfer network 30913 | -5/Extension | Incoming investigation squad redirected 31106 | -5/Extension | Rescued a captive Derelict 31106 | -5/Extension | Rescued a captive Derelict 31240 | -5/Extension | Destroyed 8 combat bots 31964 | -5/Extension | Rescued A7 32004 | -5/Extension | First assault squad dispatched 32023 | -5/Extension | Rescued a captive Derelict 32218 | -5/Extension | Discovered exit to Factory (range 10) 32220 | -5/Extension | Discovered new exit (range 6) 32230 | -5/Extension | Identified exit to Cetus 32233 | -5/Extension | Entered Cetus 32233 | -5/Cetus | Accompanied by 3 allies (A7) 32238 | -5/Cetus | Acquired a Cetus Manufacturing Module code from A7 32255 | -5/Cetus | Spotted Cetus Guard 32255 | -5/Cetus | Spotted Cetus Guard 32258 | -5/Cetus | Spotted Cetus Guard 32264 | -5/Cetus | Spotted Cetus Guard 32270 | -5/Cetus | Allies destroyed Cetus Guard 32272 | -5/Cetus | Destroyed Cetus Guard 32279 | -5/Cetus | Destroyed Cetus Guard 32286 | -5/Cetus | Allies destroyed Cetus Guard 32381 | -5/Cetus | Cetus Manufacturing Module disabled 32495 | -5/Cetus | Failed to start Cetus Manufacturing Module 32508 | -5/Cetus | Escorted A7 to Cetus Mainframe 32548 | -5/Cetus | Extracted ID and sensor layout for unrecognized location from A7's data core 32570 | -5/Cetus | Found Prototype Protection 32570 | -5/Cetus | Identified Med. Regenerative Plating 32580 | -5/Cetus | Discovered new exit (range 21) 32594 | -5/Cetus | Destroyed 7 combat bots 32622 | -5/Cetus | Identified exit to Archives 32630 | -5/Cetus | Build established: Scavenger-Golem 32663 | -5/Cetus | Spotted Cetus Guard 32663 | -5/Cetus | Spotted Cetus Guard 32666 | -5/Cetus | Spotted Cetus Guard 32666 | -5/Cetus | Spotted Cetus Guard 32667 | -5/Cetus | Destroyed Cetus Guard 32671 | -5/Cetus | Destroyed Cetus Guard 32692 | -5/Cetus | Destroyed Cetus Guard 32702 | -5/Cetus | Destroyed Cetus Guard 32717 | -5/Cetus | Discovered exit to Factory (range 21) 32744 | -5/Cetus | Met Revision 17 32844 | -5/Cetus | Entered Archives 32920 | -5/Archives | Discovered new exit (range 21) 32930 | -5/Archives | Discovered new exit (range 21) 32945 | -5/Archives | Unable to access archive contents 32977 | -5/Archives | Identified exit to Hub_04(d) 33837 | -5/Archives | Entered Hub_04(d) 33849 | -5/Hub_04(d) | Garrison activated, responded to threat 33881 | -5/Hub_04(d) | Incoming assault squad redirected 34256 | -5/Hub_04(d) | Found Prototype Launcher 34256 | -5/Hub_04(d) | Identified Tesla Bomb Launcher 34314 | -5/Hub_04(d) | Network Hub disabled 34327 | -5/Hub_04(d) | Spotted Lightning 34328 | -5/Hub_04(d) | Spotted Lightning 34331 | -5/Hub_04(d) | Spotted Lightning 34339 | -5/Hub_04(d) | Spotted Lightning 34343 | -5/Hub_04(d) | Spotted Lightning 34349 | -5/Hub_04(d) | Spotted Lightning 34350 | -5/Hub_04(d) | Spotted Lightning 34354 | -5/Hub_04(d) | Spotted Lightning 34356 | -5/Hub_04(d) | Spotted Lightning 34363 | -5/Hub_04(d) | Network Hub disabled 34365 | -5/Hub_04(d) | Entered Factory 34365 | -4/Factory | Evolved 2 slots: Propulsion x2 34385 | -4/Factory | Lost 4 parts (1n1u2w) 34385 | -4/Factory | Discovered new exit (range 16) 34451 | -4/Factory | Identified exit to Research 35115 | -4/Factory | First assault squad dispatched 35132 | -4/Factory | Incoming assault squad redirected 35306 | -4/Factory | Identified exit to Upper Caves 35393 | -4/Factory | Incoming assault squad redirected 36263 | -4/Factory | Entered Upper Caves 36429 | -4/Upper Caves | Learned location of Armory (-3) 36903 | -4/Upper Caves | Spotted B-86 Titan 37453 | -4/Upper Caves | Discovered new exit (range 10) 37556 | -4/Upper Caves | Identified exit to Upper Caves 37922 | -4/Upper Caves | Entered another Upper Caves area 38001 | -4/Upper Caves | Encountered a Warlord checkpoint 38237 | -4/Upper Caves | Discovered exit to Research (range 14) 39000 | -4/Upper Caves | Learned Research stockpile data 39605 | -4/Upper Caves | Discovered new exit (range 6) 39615 | -4/Upper Caves | Identified exit to Warlord 39690 | -4/Upper Caves | Entered Warlord 39814 | -4/Warlord | Discovered new exit (range 8) 39826 | -4/Warlord | Identified exit to Proximity Caves 40929 | -4/Warlord | Warlord's base attacked by MAIN.C 40957 | -4/Warlord | Met Warlord 40976 | -4/Warlord | Opened Warlord's prototype stash 40982 | -4/Warlord | Found Prototype Reactor 41001 | -4/Warlord | Found Prototype Hackware 41010 | -4/Warlord | Found Prototype Device 41011 | -4/Warlord | Identified System Purifier 41014 | -4/Warlord | Found Prototype Processor 41014 | -4/Warlord | Identified Spectral Analyzer 41158 | -4/Warlord | Found Prototype Energy Gun 41160 | -4/Warlord | Found Prototype Energy Gun 41279 | -4/Warlord | Warlord forces counterattacked 41353 | -4/Warlord | Opened side exit 41419 | -4/Warlord | Entered Proximity Caves 41551 | -3/Proximity Caves | Spotted B-86 Titan 41570 | -3/Proximity Caves | Revealed the true nature of CR-A16's Pointy Stick 41573 | -3/Proximity Caves | Destroyed B-86 Titan 42760 | -3/Proximity Caves | Discovered exit to Research (range 20) 42951 | -3/Proximity Caves | Build established: Hauler-Golem 43293 | -3/Proximity Caves | Build established: Scavenger-Golem 43671 | -3/Proximity Caves | Entered Research 43671 | -3/Research | Evolved 2 slots: Utility x2 43672 | -3/Research | Loaded intel: 74 trap records 43806 | -3/Research | Identified System Mapper 43807 | -3/Research | Identified exit to Armory 43807 | -3/Research | Identified exit to Testing 43981 | -3/Research | Found Unknown Launcher 43981 | -3/Research | Identified Gamma Bomb Array 44209 | -3/Research | Identified Vortex Chain Reactor 44218 | -3/Research | Identified Vortex Rail (x2) 44326 | -3/Research | Entered Testing 44496 | -3/Testing | Found Prototype Energy Cannon 44515 | -3/Testing | Identified Hpw. Disruptor Cannon 44534 | -3/Testing | Found Prototype Energy Cannon 44540 | -3/Testing | Identified Imp. Potential Cannon 44548 | -3/Testing | Found Prototype Energy Cannon 44550 | -3/Testing | Identified Potential Cannon 44774 | -3/Testing | Found Prototype Launcher 44815 | -3/Testing | Identified Z-bomb Delivery System 44836 | -3/Testing | Build established: Scavenger-Assassin 44957 | -3/Testing | Found Prototype Energy Gun 44966 | -3/Testing | Identified Tachyon Dispersion Ray 45064 | -3/Testing | Identified exit to Research 45216 | -3/Testing | Repaired Huge Storage Unit 45739 | -3/Testing | Found Prototype Energy Gun 45753 | -3/Testing | Identified Hyp. EM Gauss Rifle 45791 | -3/Testing | Found Prototype Hackware 45800 | -3/Testing | Identified Ghost Barrier 45940 | -3/Testing | Found Prototype Protection 45940 | -3/Testing | Identified SHELL Armor 46050 | -3/Testing | Entered Research 46050 | -2/Research | Warlord forces began assault on 0b10 46050 | -2/Research | Evolved 2 slots: Utility x2 46109 | -2/Research | Met up with Warlord 46160 | -2/Research | Research machine network offline 46346 | -2/Research | Build established: Golem 46736 | -2/Research | Borebot progress halted 46918 | -2/Research | Spotted Striker 46921 | -2/Research | Spotted Striker 46923 | -2/Research | Destroyed Striker 46932 | -2/Research | Destroyed Striker 46985 | -2/Research | Discovered new exit (range 5) 46991 | -2/Research | Identified exit to Quarantine 47056 | -2/Research | Borebot progress halted 47176 | -2/Research | Entered Quarantine 47705 | -2/Quarantine | Found Alien Artifact 47762 | -2/Quarantine | Cryocooling Duct disabled 47768 | -2/Quarantine | Cryocooling Duct disabled 47777 | -2/Quarantine | Ambient heat levels rising (+20) 47777 | -2/Quarantine | Non-combat units ordered to evacuate 47783 | -2/Quarantine | Ambient heat levels rising (+20) 47783 | -2/Quarantine | Combat units ordered to evacuate 47847 | -2/Quarantine | Identified exit to Access 47882 | -2/Quarantine | Found Alien Energy Cannon 47883 | -2/Quarantine | Quarantine Guard activated 47926 | -2/Quarantine | Spotted Quarantine Guard 47975 | -2/Quarantine | Met incapacitated Sigix Warrior 47975 | -2/Quarantine | Lockdown squad dispatched 48034 | -2/Quarantine | Crushed by falling debris 48102 | -2/Quarantine | Found Alien Artifact 48105 | -2/Quarantine | Identified Dimensional Node Initializer (x2) 48105 | -2/Quarantine | Initialized slip node 48109 | -2/Quarantine | Found Dimensional Node Initializer 48118 | -2/Quarantine | Found Alien Artifact 48126 | -2/Quarantine | Found Alien Artifact 48129 | -2/Quarantine | Found Alien Artifact 48158 | -2/Quarantine | Spotted Quarantine Guard 48170 | -2/Quarantine | Destroyed Quarantine Guard 48212 | -2/Quarantine | Spotted Quarantine Guard 48212 | -2/Quarantine | Spotted Quarantine Guard 48217 | -2/Quarantine | Destroyed Quarantine Guard 48227 | -2/Quarantine | Destroyed Quarantine Guard 48283 | -2/Quarantine | Spotted Quarantine Guard 48290 | -2/Quarantine | Spotted Quarantine Guard 48299 | -2/Quarantine | Destroyed Quarantine Guard 48329 | -2/Quarantine | Destroyed Quarantine Guard 48356 | -2/Quarantine | Destroyed Quarantine Guard 48429 | -2/Quarantine | Found Alien Impact Weapon 48541 | -2/Quarantine | Spotted Quarantine Guard 48545 | -2/Quarantine | Spotted Quarantine Guard 48602 | -2/Quarantine | Spotted Quarantine Guard 48606 | -2/Quarantine | Destroyed Quarantine Guard 48660 | -2/Quarantine | Found Fusion Bomb Launcher 48689 | -2/Quarantine | Spotted Alpha 7 48847 | -2/Quarantine | Spotted Quarantine Guard 48856 | -2/Quarantine | Identified Hpw. Transdimensional Reconstructor 48856 | -2/Quarantine | Warped through subspace to slip node 48867 | -2/Quarantine | Found Hpw. Transdimensional Reconstructor 48936 | -2/Quarantine | Entered Access 48936 | -1/Access | Evolved 2 slots: Power x2 49204 | -1/Access | Build established: Generator-Golem 49798 | -1/Access | Destroyed 7 combat bots 49936 | -1/Access | First assault squad dispatched 49953 | -1/Access | Incoming assault squad redirected 50050 | -1/Access | Identified exit to Surface 50818 | -1/Access | Found Antimissile System 50957 | -1/Access | Spotted B-99 Colossus 50966 | -1/Access | Destroyed B-99 Colossus 51201 | -1/Access | Incoming assault squad redirected 51212 | -1/Access | Incoming assault squad redirected 51308 | -1/Access | Incoming assault squad redirected 51357 | -1/Access | Initialized slip node 51398 | -1/Access | Spotted B-99 Colossus 51404 | -1/Access | Spotted B-99 Colossus 51405 | -1/Access | Destroyed B-99 Colossus 51457 | -1/Access | Incoming assault squad redirected 51498 | *** | Escaped! Last Messages --------------- 51457_ ALERT: Higher priority target reported, redirecting assault. 51460_ Slug penetrates Sealed Heavy Doors. 51460_ Slug penetrates Reinforced Barrier. 51460_ Penetrated by Slug. 51460_ Slug penetrates Reinforced Barrier. 51461_ B-74 Champion reactivates. 51466_ Destroyed Adv. Heat Sink. 51467_ ODTAGWP1KWCBGXANWAXVHG 51467_ G-73 Enforcer system terminally corrupted. 51469_ B-74 Champion destroyed. 51469_ G-73 Enforcer reactivates. 51470_ Acquired 49 matter. 51473_ K-01 Serf collects debris. 51479_ G-73 Enforcer system terminally corrupted. 51479_ Unknown Energy Gun fried. 51479_ Adv. Heat Sink fried. 51480_ K-01 Serf collects debris. 51490_ Wheel fried. 51490_ M-36 Artificer destroyed. 51491_ K-01 Serf collects debris. Map ----- +----------------------------------------------------+ | ???????????????????????? #???????????????# %! | | ???????????????????????? #???????????????# | | ???????????????????????? #???????????????# | | ???????????????????????? #???????????????# ==! | | ???????????????????????? #???????????????# ==! | | ??????????????????????? #???????????????# =!! | | ??????????????????????? #???????????????# | | ??????????????????????? #???????????????# | | ??????????????????????? #???????????????# | | ???????????????????#### ####???########## | | ???????????????????# #???# + | | ???????????????????# #???# # [ | | ???????????????????# ! #???# !! # | | ???????????????????#!*!! #???# !! [# ! | | ???????????????????#*%[[ #???# !! ] #=== | | ???????????????????#!]! #???# #== | | ???????????????????# ! #???# #== | | ???????????????????#*"""""""""#??## # | | ???????????????????#%""??????????#" # | | ???????????????????#%="??????????#""######## | | ???????????????????#"%""""""""#?# ###??## | | ???????????????????#==! ## #?????##/###+#### | | ???????????????????# / # #??????# | | ???????????????????# = ##???????# | | ???????????????????# *%[* #????????# | | ???????????????????# =%=@% #????????# """""" | | ???????????????????# *<= #????????# """""" | | ???????????????????# % #????????# """""" | | ???????????????????# #????????# """""" | | ??????????????????## ##???????# """""" | | ??????????????????# k #???????# | | ??????????????????## ##???????#[% | | ???????????????????# ! #????????#% | | ???????????????????#"" =%/% #????????#!% % | | ???????????????????#T %!=/ *##???????##+######## | | ???????????????????#"" !%!##??????##!##?????? | | ???????????????????#"" [ = #????####%####???? | | ????### #########"" %=%%######[!!]#####"" | | ???# "= =!% = !%|%| ![%!!!%!![=%! | | ????### !!!!* !%[**! =%!=[*!==%!% | | ??????# ##"#############;;! ;# ##### *%#=*##! | | ??????##????#?????????????##### # # #"#"### *#" | | ??????????????????????????????? ## ## #????#? | | ???????????????????????????????### # ## ##???????? | | ????????????????????????????????# ### ###????????? | | ???????????????????????????????# #???# #?????????? | | ???????????????????????????????##?????# #????????? | | ???????????????????????????????????????# #???????? | | ????????????????????????????????????????##???????? | | ?????????????????????????????????????????????????? | +----------------------------------------------------+ Best States ------------- Heat Dissipation 115 Energy Generation 95 Energy Capacity 2700 Matter Stores 300 Matter Capacity 300 Sight Range 24 Robot Scan Range 20 Terrain Scan Range 16 Terrain Scan Density 110 Jamming Range 16 Additional Mass Support 20 Base Temperature (-) 100 Armor Coverage 1675 Resistance: KI 15 Resistance: TH 15 Resistance: EX 15 Resistance: EM 15 Resistance: I 15 Resistance: S 15 Resistance: P 15 Core Shielding 20 Weapon Shielding 100 Weapon Cycling 20 Phase Shifting 8 Evasion (%) 53 Targeting Accuracy 8 Target Analysis 8 Core Analysis 8 Offensive Hacking 20 Authchip Count 2 Item Schematics ----------------- Imp. Light Armor Plating | -8/Materials | Scanalyzed Combat Drone Bay | -7/Data Miner | Free Lgt. Regenerative Plating | -7/Data Miner | Free Cld. Cesium-ion Thruster | -7/Data Miner | Free Exp. Targeting Computer | -7/Data Miner | Free Cld. Plasma Cannon | -7/Data Miner | Free Hvy. Treads | -7/Data Miner | Free Imp. Arc Projector | -7/Data Miner | Free Imp. Thermal Shield | -7/Data Miner | Free Focal Shield | -7/Data Miner | Free Field Propulsion Drive | -7/Data Miner | Free Imp. Weapon Cycler | -7/Data Miner | Free Adv. Particle Charger | -7/Data Miner | Free Hvy. Battle Rifle | -6/Zion | Free Flamer | -6/Zion | Free Ripper | -6/Zion | Free Cld. Phase Cannon | -3/Testing | Archive Com. Tesla Bomb Launcher | -3/Testing | Archive Helical Railgun | -3/Testing | Archive Kinetic Spear | -3/Testing | Archive Exp. Energy Well | -3/Testing | Archive Exp. Myomer Leg | -3/Testing | Archive Adv. Matter Compressor | -3/Testing | Archive Exp. Melee Analysis Suite | -3/Testing | Archive Imp. Quantum Reactor | -2/Quarantine | Archive Centrium Heavy Treads | -2/Quarantine | Archive Centrium Leg | -2/Quarantine | Hacked Hvy. Neutron Cannon | -2/Quarantine | Archive Centrium Medium Armor Plating | -2/Quarantine | Scanalyzed Enh. Armored Heavy Treads | -2/Quarantine | Scanalyzed Fusion Bomb Launcher | -2/Quarantine | Scanalyzed Robot Schematics ------------------ M-22 Extractor | -7/Data Miner | Free P-60 Hacker | -7/Data Miner | Free G-50 Soldier | -7/Data Miner | Free B-48 Gladiator | -7/Data Miner | Free H-66 Slayer | -7/Data Miner | Free M-36 Artificer | -3/Testing | Archive T-07 Excavator | -3/Testing | Archive P-80 Master | -3/Testing | Archive C-55 Analyst | -3/Testing | Archive A-15 Conveyor | -2/Quarantine | Archive R-10 Processor | -2/Quarantine | Archive H-77 Assassin | -2/Quarantine | Archive Fabricated ------------ Nothing Alien Tech Used ----------------- Dimensional Node Initializer High-powered Transdimensional Reconstructor Achievements -------------- All-out Warlord Close Call Leap Before You Look Challenges ------------ None Game ------ Seed MasterGreatModule Manual? 0 Play Time 11:08:50 Cumulative 116.7 hours Start 2022.04.15 @ 17:10:14 End 2022.04.18 @ 06:34:31 Sessions 28 Manual Loads 0 Difficulty Rogue Special Mode None Game No. 20 Rogue 13 Adventurer 1 Explorer 6 Win Type 0 Total 5 Types 3/1/1/0/0/0/0/0/0 Lore% 64 Gallery% 59 Achievement% 60 Wizard Run 0 Options --------- ASCII 0 Keyboard 0 Movement Mouse Keybinds 0 Fullscreen 1 Font 18/SmallcapsGlow Map View 76x50 Tactical HUD 1 Map Filters NONE Filters NONE Steam 1 RUN: 1f6a0944-eeaf-4a03-a8ca-dc9a26505c87